{"text_format":"1","workbook":"xlsx","n_sheets":8,"sheets":["Type marques","Historiq","Circuits","HistoriqCircuits","Familles Plus","Familles Moins","Familles HD","Régions"],"not_rendered":{"charts":4,"images":8,"macros":1,"external_links":0,"defined_names":6,"comments":0,"pivot_tables":0},"unopened":[],"bounds":{"document_bytes":16777216,"sheet_cells":100000,"rows_first":2000,"rows_last":500,"rows_between":2000,"halvings":0,"cell_chars":16384,"cell_head_chars":4096},"cells_cut":0,"cells_raw":0,"read":"whole","date_system":"1900"}

{"sheet":"Type marques","index":0,"n_rows":23,"n_cols":21,"rows_kept":23,"cut":false,"hidden":false,"merged":[[10,1,10,3]]}
["Observatoire des prix et des marges"]
[]
["Produits de grande consommation – Grande distribution",null,null,null,null,null,null,null,null,null,null,null,null,null,null,null,null,"EXHAUSTIF","MDD","PPX","mfabb"]
[null,null,null,null,null,null,null,null,null,null,null,null,null,null,null,null,"Total EPICERIE",-2.4300000000000002,-0.14000000000000001,1.24,-3.44]
[null,null,null,null,null,null,null,null,null,null,null,null,null,null,null,null,"Total LIQUIDES",-1.51,1.86,0.46,-2.78]
[null,null,null,null,null,null,null,null,null,null,null,null,null,null,null,null,"Total D.P.H.",-2.91,-0.78,-0.55000000000000004,-3.55]
[null,null,null,null,null,null,null,null,null,null,null,null,null,null,null,null,"Total Produits Frais",-1.33,0.15,0.33,-2.4900000000000002]
[null,null,null,null,null,null,null,null,null,null,null,null,null,null,null,null,"Total Non Alimentaire",-1.35,-0.56000000000000005,-1.1000000000000001,-1.89]
[null,null,null,null,null,null,null,null,null,null,null,null,null,null,null,null,"Total P.G.C.",-2.44,-0.02,0.75,-3.39]
[null,null,null,null,null,null,null,null,null,null,null,null,null,null,null,null,"Total Alimentaire",-2.17,0.04,0.63,-3.21]
[null,null,null,null,null,"EXHAUSTIF",null,"MARQUES FABRICANTS",null,"MDD",null,"PPX",null,null,null,null,"Total GENERAL",-2.15,0.02,0.55000000000000004,-3.18]
[null," ---EPICERIE",null,null,null,{"$f":"+R4","v":-2.4300000000000002},null,{"$f":"+U4","v":-3.44},null,{"$f":"+S4","v":-0.14000000000000001},null,{"$f":"+T4","v":1.24}]
[null," ---LIQUIDES",null,null,null,{"$f":"+R5","v":-1.51},null,{"$f":"+U5","v":-2.78},null,{"$f":"+S5","v":1.86},null,{"$f":"+T5","v":0.46}]
[null," ---D.P.H.",null,null,null,{"$f":"+R6","v":-2.91},null,{"$f":"+U6","v":-3.55},null,{"$f":"+S6","v":-0.78},null,{"$f":"+T6","v":-0.55000000000000004}]
[null," --P.G.C.",null,null,null,{"$f":"+R9","v":-2.44},null,{"$f":"+U9","v":-3.39},null,{"$f":"+S9","v":-0.02},null,{"$f":"+T9","v":0.75}]
[null," --PRODUITS FRAIS L.S.",null,null,null,{"$f":"+R7","v":-1.33},null,{"$f":"+U7","v":-2.4900000000000002},null,{"$f":"+S7","v":0.15},null,{"$f":"+T7","v":0.33}]
[null," -ALIMENTAIRE (PGC+FLS)",null,null,null,{"$f":"+R10","v":-2.17},null,{"$f":"+U10","v":-3.21},null,{"$f":"+S10","v":0.04},null,{"$f":"+T10","v":0.63}]
[null," -NON ALIMENTAIRE",null,null,null,{"$f":"+R8","v":-1.35},null,{"$f":"+U8","v":-1.89},null,{"$f":"+S8","v":-0.56000000000000005},null,{"$f":"+T8","v":-1.1000000000000001}]
[null," TOTAL GENERAL",null,null,null,{"$f":"+R11","v":-2.15},null,{"$f":"+U11","v":-3.18},null,{"$f":"+S11","v":0.02},null,{"$f":"+T11","v":0.55000000000000004}]
[]
[null,"Leaders : 7 000 produits détenus par + 40 % des magasins en France."]
[null,"Plus Grandes Marques = \"Majeurs\": les références des marques majeures par catégories de produits (environ 1500 produits)"]
[null,"Exhaustifs : totalité de produits suivis"]

{"sheet":"Historiq","index":1,"n_rows":144,"n_cols":23,"rows_kept":144,"cut":false,"hidden":false,"merged":[]}
["Observatoire des prix et des marges",null,null,null,null,null,null,null,null,null,null,null,null,null,null,null,"Evolution de l'inflation (inflation annuelle 2003/2002, 2004/2003 etc.)"]
[null,null,null,null,null,null,null,null,null,null,null,null,null,null,null,null,"Total circuits - par type de marques, et du Hard-Discount (en exhaustif)"]
["Produits de grande consommation – Grande distribution"]
[null,null,null,null,null,null,null,null,null,null,null,null,null,null,null,null,"TOTAL GENERAL                            "]
[null,null,null,null,null,null,null,null,null,null,null,null,null,null,null,null,null,"Exhaustifs","MdD","Premiers Prix","Mar. Fabricants","Hard-Discounters","MP HD"]
[null,null,null,null,null,null,null,null,null,null,null,null,null,null,null,null,"2003-01-01",2.23,0.45,1.02,null,-0.05,{"$f":"+V6","v":-0.05}]
[null,null,null,null,null,null,null,null,null,null,null,null,null,null,null,null,"février",2.52,0.48,1.02,null,0.05,0.05]
[null,null,null,null,null,null,null,null,null,null,null,null,null,null,null,null,"mars",2.82,0.67,1.18,null,-0.16,-0.16]
[null,null,null,null,null,null,null,null,null,null,null,null,null,null,null,null,"avril",3.06,0.59,1.46,null,-0.15,-0.15]
[null,null,null,null,null,null,null,null,null,null,null,null,null,null,null,null,"mai",3.02,0.67,1.1499999999999999,null,-0.26,-0.26]
[null,null,null,null,null,null,null,null,null,null,null,null,null,null,null,null,"juin",2.9,0.98,0.99,null,-0.63,-0.63]
[null,null,null,null,null,null,null,null,null,null,null,null,null,null,null,null,"sept.",2.12,0.51,0.39,null,-0.73,-0.73]
[null,null,null,null,null,null,null,null,null,null,null,null,null,null,null,null,"octobre",1.98,0.45,-1.2,null,-0.48,-0.48]
[null,null,null,null,null,null,null,null,null,null,null,null,null,null,null,null,"nov.",1.92,0.36,-0.6,null,-1.02,-1.02]
[null,null,null,null,null,null,null,null,null,null,null,null,null,null,null,null,"déc*",1.9,0.215,-0.85,null,-1.0900000000000001,-1.0900000000000001]
[null,null,null,null,null,null,null,null,null,null,null,null,null,null,null,null,"2004-01-01",1.88,7.0000000000000007E-2,-1.1000000000000001,null,-1.1599999999999999,-1.1599999999999999]
[null,null,null,null,null,null,null,null,null,null,null,null,null,null,null,null,"février",1.78,0.01,-1.43,null,-0.84,-0.84]
[null,null,null,null,null,null,null,null,null,null,null,null,null,null,null,null,"mars",1.63,-0.27,-1.71,null,-0.75,-0.75]
[null,null,null,null,null,null,null,null,null,null,null,null,null,null,null,null,"avril",1.37,-0.46,-2.61,null,-0.95,-0.95]
[null,null,null,null,null,null,null,null,null,null,null,null,null,null,null,null,"mai",1.26,-0.56999999999999995,-2.72,null,-1.03,-1.03]
[null,null,null,null,null,null,null,null,null,null,null,null,null,null,null,null,"juin",1.0900000000000001,-0.74,-3.3,null,-1.1200000000000001,-1.1200000000000001]
[null,null,null,null,null,null,null,null,null,null,null,null,null,null,null,null,"juill**",0.92,-0.9,-3.53,null,-1.1200000000000001,-1.1200000000000001]
[null,null,null,null,null,null,null,null,null,null,null,null,null,null,null,null,"août**",0.57999999999999996,-1.06,-3.76,null,-1.1100000000000001,-1.1100000000000001]
[null,null,null,null,null,null,null,null,null,null,null,null,null,null,null,null,"sept.",-0.05,-1.29,-4.03,null,-1.1100000000000001,-1.1100000000000001]
[null,null,null,null,null,null,null,null,null,null,null,null,null,null,null,null,"oct",-0.38,-1.66,-4.16,null,-1.1499999999999999,-1.1499999999999999]
[null,null,null,null,null,null,null,null,null,null,null,null,null,null,null,null,"nov",-0.6,-1.82,-4.09,null,-1.42,-1.42]
[null,null,null,null,null,null,null,null,null,null,null,null,null,null,null,null,"déc*",-0.81,-2.0299999999999998,-4.1100000000000003,null,-1.53,-1.53]
[null,null,null,null,null,null,null,null,null,null,null,null,null,null,null,null,"2005-01-01",-1.01,-2.2599999999999998,-4.1100000000000003,null,-1.63,-1.63]
[null,null,null,null,null,null,null,null,null,null,null,null,null,null,null,null,"février",-1.17,-2.08,-4.09,null,-1.34,-1.34]
[null,null,null,null,null,null,null,null,null,null,null,null,null,null,null,null,"mars",-1.33,-2.12,-3.86,null,-2.12,-2.12]
[null,null,null,null,null,null,null,null,null,null,null,null,null,null,null,null,"avril",-1.34,-2.2200000000000002,-3.28,null,-1.6,-1.6]
[null,null,null,null,null,null,null,null,null,null,null,null,null,null,null,null,"mai",-1.47,-2.4900000000000002,-3.1,null,-1.58,-1.58]
[null,null,null,null,null,null,null,null,null,null,null,null,null,null,null,null,"juin",-1.52,-2.67,-2.91,null,-1.53,-1.53]
[null,null,null,null,null,null,null,null,null,null,null,null,null,null,null,null,"juillet**",-1,-2.7,-2.4,null,-1.5,-1.5]
[null,null,null,null,null,null,null,null,null,null,null,null,null,null,null,null,"août**",-1,-2.7,-2.4,null,-1.5,-1.5]
[null,null,null,null,null,null,null,null,null,null,null,null,null,null,null,null,"sept.",-0.54,-2.67,-1.83,null,-1.52,-1.52]
[null,null,null,null,null,null,null,null,null,null,null,null,null,null,null,null,"oct.",-0.15,-2.0099999999999998,-1.88,null,-1.41,-1.41]
[null,null,null,null,null,null,null,null,null,null,null,null,null,null,null,null,"nov.",-0.21,-2.4700000000000002,-1.8,null,-1.1200000000000001,{"$f":"+V38","v":-1.1200000000000001}]
[null,null,null,null,null,null,null,null,null,null,null,null,null,null,null,null,"déc.*",-4.9999999999999906E-3,-2.4049999999999998,-1.42,null,-0.93,-0.93]
[null,null,null,null,null,null,null,null,null,null,null,null,null,null,null,null,"2006-01-01",0.2,-2.34,-1.04,null,-0.74,-0.74]
[null,null,null,null,null,null,null,null,null,null,null,null,null,null,null,null,"2006-02-01",0.24,-2.2000000000000002,-0.88,null,-0.4,-0.4]
[null,null,null,null,null,null,null,null,null,null,null,null,null,null,null,null,"2006-03-01",0.41,-1.81,-0.65,null,-0.05,-0.05]
[null,null,null,null,null,null,null,null,null,null,null,null,null,null,null,null,"2006-04-01",0.39,-1.49,-0.34,null,-0.16,-0.16]
[null,null,null,null,null,null,null,null,null,null,null,null,null,null,null,null,"2006-05-01",0.41,-1.1499999999999999,-0.14000000000000001,null,-0.32,-0.32]
[null,null,null,null,null,null,null,null,null,null,null,null,null,null,null,null,"2006-06-01",0.2,-0.85,0.05,null,-0.68,-0.68]
[null,null,null,null,null,null,null,null,null,null,null,null,null,null,null,null,"2006-07-01",0.33750000000000002,-0.375,0.34250000000000003,null,-0.39,-0.39]
[null,null,null,null,null,null,null,null,null,null,null,null,null,null,null,null,"2006-08-01",0.37,0.25,0.73,null,-0.28000000000000003,-0.28000000000000003]
[null,null,null,null,null,null,null,null,null,null,null,null,null,null,null,null,"2006-09-01",0.09,-0.21,0.1,null,-0.31,-0.31]
[null,null,null,null,null,null,null,null,null,null,null,null,null,null,null,null,"2006-10-01",0.15,0.2,0.56999999999999995,null,0.05,0.05]
[null,null,null,null,null,null,null,null,null,null,null,null,null,null,null,null,"2006-11-01",7.0000000000000007E-2,0.36,0.53,null,0.52,0.52]
[null,null,null,null,null,null,null,null,null,null,null,null,null,null,null,null,"déc.*-06",-4.4999999999999998E-2,0.46500000000000002,0.78,null,0.4,0.4]
[null,null,null,null,null,null,null,null,null,null,null,null,null,null,null,null,"2007-01-01",-0.16,0.56999999999999995,1.03,null,0.28000000000000003,0.28000000000000003]
[null,null,null,null,null,null,null,null,null,null,null,null,null,null,null,null,"fev-07",-0.44,0.44,0.95,null,0.43,0.43]
[null,null,null,null,null,null,null,null,null,null,null,null,null,null,null,null,"2007-03-01",-0.1,1.22,1.28,null,0.5,0.5]
[null,null,null,null,null,null,null,null,null,null,null,null,null,null,null,null,"2007-04-01",-0.74,0.6,0.88,null,-0.15,-0.15]
[null,null,null,null,null,null,null,null,null,null,null,null,null,null,null,null,"2007-05-01",-0.74,0.91,1.03,null,-0.13,-0.13]
[null,null,null,null,null,null,null,null,null,null,null,null,null,null,null,null,"2007-06-01",-0.49,1.1100000000000001,1.1399999999999999,null,0.48,0.48]
[null,null,null,null,null,null,null,null,null,null,null,null,null,null,null,null,"2007-07-01",-0.37,1.39,1.43,null,0.68,0.68]
[null,null,null,null,null,null,null,null,null,null,null,null,null,null,null,null,"2007-08-01",-7.0000000000000007E-2,1.9,1.92,null,1.29,1.29]
[null,null,null,null,null,null,null,null,null,null,null,null,null,null,null,null,"2007-09-01",-0.09,1.81,2.2599999999999998,null,1.24,1.24]
[null,null,null,null,null,null,null,null,null,null,null,null,null,null,null,null,"2007-10-01",7.0000000000000007E-2,1.62,2.0099999999999998,null,1.3,1.3]
[null,null,null,null,null,null,null,null,null,null,null,null,null,null,null,null,"2007-11-01",0.43,1.98,2.54,null,0.35,0.35]
[null,null,null,null,null,null,null,null,null,null,null,null,null,null,null,null,"2007-12-01",1.42,2.63,3.43,null,2.0499999999999998,2.0499999999999998]
[null,null,null,null,null,null,null,null,null,null,null,null,null,null,null,null,"2008-01-01",2.39,3.1,3.63,null,3.76,3.76]
[null,null,null,null,null,null,null,null,null,null,null,null,null,null,null,null,"2008-02-01",3.3,3.77,4.55,null,4.07476288256575,4.07476288256575]
[null,null,null,null,null,null,null,null,null,null,null,null,null,null,null,null,"2008-03-01",3.55,3.81,4.8600000000000003,null,3.82,3.82]
[null,null,null,null,null,null,null,null,null,null,null,null,null,null,null,null,"2008-04-01",3.67,3.93,5.2,null,3.77,3.77]
[null,null,null,null,null,null,null,null,null,null,null,null,null,null,null,null,"2008-05-01",3.91,3.8,5.68,null,3.79,3.79]
[null,null,null,null,null,null,null,null,null,null,null,null,null,null,null,null,"2008-06-01",3.86,3.94,6.06,null,3.8,4.0999999999999996]
[null,null,null,null,null,null,null,null,null,null,null,null,null,null,null,null,"2008-07-01",4.04,4.2,6.19,null,4.96,5.2]
[null,null,null,null,null,null,null,null,null,null,null,null,null,null,null,null,"2008-08-01",4.03,4.17,6.48,null,4.3099999999999996,4.6100000000000003]
[null,null,null,null,null,null,null,null,null,null,null,null,null,null,null,null,"2008-09-01",4.12,4.32,6.68,null,3.48,4.72]
[null,null,null,null,null,null,null,null,null,null,null,null,null,null,null,null,"2008-10-01",4.04,4.12,6.54,null,4.05,5.13]
[null,null,null,null,null,null,null,null,null,null,null,null,null,null,null,null,"2008-11-01",3.98,4.08,6.48,null,3.39,4.97]
[null,null,null,null,null,null,null,null,null,null,null,null,null,null,null,null,"2008-12-01",3.06,3.64,6,null,2.21,3.19]
[null,null,null,null,null,null,null,null,null,null,null,null,null,null,null,null,"2009-01-01",2.0099999999999998,2.58,5.17,null,1.71,2.54]
[null,null,null,null,null,null,null,null,null,null,null,null,null,null,null,null,"2009-02-01",1.54,1.91,4.26,null,1.28,2.19]
[null,null,null,null,null,null,null,null,null,null,null,null,null,null,null,null,"2009-03-01",1.29,1.83,3.93,null,0.84,1.84]
[null,null,null,null,null,null,null,null,null,null,null,null,null,null,null,null,"2009-04-01",1.04,1.53,3.39,null,1.51,2.08]
[null,null,null,null,null,null,null,null,null,null,null,null,null,null,null,null,"2009-05-01",0.91,1.19,2.83,null,1.42,1.82]
[null,null,null,null,null,null,null,null,null,null,null,null,null,null,null,null,"2009-06-01",0.81,1.1100000000000001,2.74,null,0.76,1.3]
[null,null,null,null,null,null,null,null,null,null,null,null,null,null,null,null,"2009-07-01",0.56999999999999995,0.63,2.2599999999999998,null,0.79,1.33]
[null,null,null,null,null,null,null,null,null,null,null,null,null,null,null,null,"2009-08-01",0.52,0.36,1.88,null,0.61,0.93]
[null,null,null,null,null,null,null,null,null,null,null,null,null,null,null,null,"2009-09-01",0.65,0.19,1.55,null,0.31,0.54]
[null,null,null,null,null,null,null,null,null,null,null,null,null,null,null,null,"2009-10-01",0.39,-0.21,1.1200000000000001,null,0.38,0.46]
[null,null,null,null,null,null,null,null,null,null,null,null,null,null,null,null,"2009-11-01",0.22,-0.62,0.6,null,-0.03,0.02]
[null,null,null,null,null,null,null,null,null,null,null,null,null,null,null,null,"2009-12-01",0.06,-0.85,0.13,null,0.14000000000000001,7.0000000000000007E-2]
[null,null,null,null,null,null,null,null,null,null,null,null,null,null,null,null,"2010-01-01",0.11,-0.94,-0.24,null,-0.81,-0.85]
[null,null,null,null,null,null,null,null,null,null,null,null,null,null,null,null,"2010-02-01",0.17,-0.61,-0.14000000000000001,null,-1.33,-1.3836002556610663]
[null,null,null,null,null,null,null,null,null,null,null,null,null,null,null,null,"2010-03-01",0.28999999999999998,-0.56999999999999995,-0.35,null,-1.54,-1.65]
[null,null,null,null,null,null,null,null,null,null,null,null,null,null,null,null,"2010-04-01",0.18,-0.69,-0.85,null,-1.6,-1.73]
[null,null,null,null,null,null,null,null,null,null,null,null,null,null,null,null,"2010-05-01",0.31,-0.81,-1.06,null,-1.53,-1.74]
[null,null,null,null,null,null,null,null,null,null,null,null,null,null,null,null,"2010-06-01",-0.04,-1.0900000000000001,-1.36,null,-1.57,-1.83]
[null,null,null,null,null,null,null,null,null,null,null,null,null,null,null,null,"2010-07-01",-0.31,-1.44,-1.62,null,-1.94,-2.2000000000000002]
[null,null,null,null,null,null,null,null,null,null,null,null,null,null,null,null,"2010-08-01",-0.62,-1.53,-1.69,null,-1.94,-2.0299999999999998]
[null,null,null,null,null,null,null,null,null,null,null,null,null,null,null,null,"2010-09-01",-0.85,-1.68,-1.84,null,-2.0499999999999998,-2.0099999999999998]
[null,null,null,null,null,null,null,null,null,null,null,null,null,null,null,null,"2010-10-01",-1.01,-1.64,-1.8,null,-2,-2.29]
[null,null,null,null,null,null,null,null,null,null,null,null,null,null,null,null,"2010-11-01",-0.96,-1.59,-1.73,null,-1.1599999999999999,{"$f":"-1.21","v":-1.21}]
[null,null,null,null,null,null,null,null,null,null,null,null,null,null,null,null,"2010-12-01",-0.91,-1.6,-1.67,null,-0.14000000000000001,-0.10974829730530056]
[null,null,null,null,null,null,null,null,null,null,null,null,null,null,null,null,"2011-01-01",-0.94,-1.28,-1.94,null,1.1499999999999999,1.2370579447230818]
[null,null,null,null,null,null,null,null,null,null,null,null,null,null,null,null,"2011-02-01",-1.03,-1.27,-1.36,null,1.7,1.9049677531811047]
[null,null,null,null,null,null,null,null,null,null,null,null,null,null,null,null,"2011-03-01",-0.53,-0.8,-0.97,null,1.62,1.826003532050976]
[null,null,null,null,null,null,null,null,null,null,null,null,null,null,null,null,"2011-04-01",0.04,-0.14000000000000001,-0.09,null,2.0299999999999998,2.2956336102639603]
[null,null,null,null,null,null,null,null,null,null,null,null,null,null,null,null,"2011-05-01",0.61,0.86,0.86,null,3.28,3.479224742690358]
[null,null,null,null,null,null,null,null,null,null,null,null,null,null,null,null,"2011-06-01",1.45,2.35,1.46,null,3.9,4.0903514376996801]
[null,null,null,null,null,null,null,null,null,null,null,null,null,null,null,null,"2011-07-01",1.84,3.07,1.85,null,4.2175000000000002,4.4175000000000004]
[null,null,null,null,null,null,null,null,null,null,null,null,null,null,null,null,"2011-08-01",1.98,3.34,2.0299999999999998,null,4.0831249999999999,4.2831250000000001]
[null,null,null,null,null,null,null,null,null,null,null,null,null,null,null,null,"2011-09-01",2.13,3.81,2.4900000000000002,null,6.02,6.3104190283400809]
[null,null,null,null,null,null,null,null,null,null,null,null,null,null,null,null,"2011-10-01",2.34,4.1900000000000004,2.52,null,6.21,7.0628698919680604]
[null,null,null,null,null,null,null,null,null,null,null,null,null,null,null,null,"2011-11-01",2.57,4.57,2.72,null,6.39,7.4825940178415262]
[null,null,null,null,null,null,null,null,null,null,null,null,null,null,null,null,"2011-12-01",2.65,4.75,3.04,null,6.76,7.9029149291075909]
[null,null,null,null,null,null,null,null,null,null,null,null,null,null,null,null,"2012-01-01",2.7,4.88,3.21,null,6.31,7.9275543140906271]
[null,null,null,null,null,null,null,null,null,null,null,null,null,null,null,null,"2012-02-01",2.74,4.8099999999999996,3.24,null,5.71,6.9095183544303795]
[null,null,null,null,null,null,null,null,null,null,null,null,null,null,null,null,"2012-03-01",2.36,4.74,3.41,null,5.69,7.0644858919177427]
[null,null,null,null,null,null,null,null,null,null,null,null,null,null,null,null,"2012-04-01",1.77,4.1500000000000004,3.18,null,5.59,6.8255699332399251]
[null,null,null,null,null,null,null,null,null,null,null,null,null,null,null,null,"2012-05-01",1.53,3.67,2.88,null,5.6,6.8266279164961121]
[null,null,null,null,null,null,null,null,null,null,null,null,null,null,null,null,"2012-06-01",1.1100000000000001,2.69,2.72,null,3.79,4.483791434075977]
[null,null,null,null,null,null,null,null,null,null,null,null,null,null,null,null,"2012-07-01",0.84,2.15,2.5299999999999998,null,3.74,4.5787807951609851]
[null,null,null,null,null,null,null,null,null,null,null,null,null,null,null,null,"2012-08-01",0.84,1.94,2.58,null,2.95,3.7801697040764806]
[null,null,null,null,null,null,null,null,null,null,null,null,null,null,null,null,"2012-09-01",0.54,1.4,2.02,null,2.8,3.6653423629682358]
[null,null,null,null,null,null,null,null,null,null,null,null,null,null,null,null,"2012-10-01",0.47,1.1100000000000001,2.04,null,2.63,3.3606651663997926]
[null,null,null,null,null,null,null,null,null,null,null,null,null,null,null,null,"2012-11-01",0.23,0.56000000000000005,1.89,null,2,2.7715836361882098]
[null,null,null,null,null,null,null,null,null,null,null,null,null,null,null,null,"2012-12-01",0.11,0.02,1.71,null,1.5,2.1981995527668374]
[null,null,null,null,null,null,null,null,null,null,null,null,null,null,null,null,"2013-01-01",0.1,-0.19,1.79,null,1.5,2.1981995527668374]
[null,null,null,null,null,null,null,null,null,null,null,null,null,null,null,null,"2013-02-01",-0.11,-0.53,1.56,null,1.53,2.281079789775442]
[null,null,null,null,null,null,null,null,null,null,null,null,null,null,null,null,"2013-03-01",-0.11,-0.5,1.58,null,1.78,2.4819825419102113]
[null,null,null,null,null,null,null,null,null,null,null,null,null,null,null,null,"2013-04-01",-0.42,-0.54,1.45,null,1.99,2.8006904385021572]
[null,null,null,null,null,null,null,null,null,null,null,null,null,null,null,null,"2013-05-01",-0.53,-0.62,1.1000000000000001,null,2.33,3.0504787032654992]
[null,null,null,null,null,null,null,null,null,null,null,null,null,null,null,null,"2013-06-01",-0.56999999999999995,-0.61,1.35,null,2.29,3.0949206349206353]
[null,null,null,null,null,null,null,null,null,null,null,null,null,null,null,null,"2013-07-01",-0.72,-0.6,1.51,null,2.37,3.4430640297202801]
[null,null,null,null,null,null,null,null,null,null,null,null,null,null,null,null,"2013-08-01",-0.77,-0.6,1.58,null,2.6,3.281106236146341]
[null,null,null,null,null,null,null,null,null,null,null,null,null,null,null,null,"2013-09-01",-0.88,-0.63,1.8,null,2.34,3.2462526507119049]
[null,null,null,null,null,null,null,null,null,null,null,null,null,null,null,null,"2013-10-01",-1.04,-0.61,1.85,null,2.59,3.4240572835175342]
[null,null,null,null,null,null,null,null,null,null,null,null,null,null,null,null,"2013-11-01",-1.08,-0.41,1.92,null,2.19,3.1084033232808457]
[null,null,null,null,null,null,null,null,null,null,null,null,null,null,null,null,"2013-12-01",-1.1299999999999999,-0.06,2,null,0.72,1.4669486618829108]
[null,null,null,null,null,null,null,null,null,null,null,null,null,null,null,null,"2014-01-01",-1.18,0.08,1.69,null,-0.3,0.39115002325355025]
[null,null,null,null,null,null,null,null,null,null,null,null,null,null,null,null,"2014-02-01",-1.28,0.12,1.44,-1.99,-0.87,2.3589925505498009E-4]
[null,null,null,null,null,null,null,null,null,null,null,null,null,null,null,null,"2014-03-01",-1.31,0.21,1.48,-2.0699999999999998,-2.2000000000000002,-1.8706462959597148]
[null,null,null,null,null,null,null,null,null,null,null,null,null,null,null,null,"2014-04-01",-1.31,0.1,1.44,-2,-3.51,-3.2698088321971506]
[null,null,null,null,null,null,null,null,null,null,null,null,null,null,null,null,"2014-05-01",-1.91,-0.3,1.1200000000000001,-2.71,-4.1500000000000004,-3.7302807453416147]
[null,null,null,null,null,null,null,null,null,null,null,null,null,null,null,null,"2014-06-01",-1.91,-0.13,0.72,-2.75,-4.68,-4.6844364933424911]
[null,null,null,null,null,null,null,null,null,null,null,null,null,null,null,null,"2014-07-01",-2.1,0,0.69,-3.09,-5.38,-5.4408806448137739]
[null,null,null,null,null,null,null,null,null,null,null,null,null,null,null,null,"2014-08-01",-2.15,0.02,0.55000000000000004,{"$f":"'Type marques'!U11","v":-3.18},-5.58,-5.6927075417573256]
[null,null,null,null,null,null,null,null,null,null,null,null,null,null,null,null,"*Les chiffres de décembre sont estimés par interpolation linéaire"]

{"sheet":"Circuits","index":2,"n_rows":56,"n_cols":18,"rows_kept":56,"cut":false,"hidden":false,"merged":[]}
["Observatoire des prix et des marges"]
[]
["Produits de grande consommation – Grande distribution"]
[null,null,null,null,null,null,null,null,null,null,null,null,null,null,"Hypers","Supers","H.D.","GMS"]
[null,null,null,null,null,null,null,null,null,null,null,null,null,"Exhaustif",{"$f":"+O9","v":-2.2799999999999998},{"$f":"+O10","v":-1.82},{"$f":"+O11","v":-5.58},{"$f":"+O12","v":-2.15}]
[null,null,null,null,null,null,null,null,null,null,null,null,null,"Marques Fabricants",-3.23,-3.08,-5.45,-3.18]
[]
[null,null,null,null,null,null,null,null,null,null,null,null,null,null,"Exha","Mdd","PPx"]
[null,null,null,null,null,null,null,null,null,null,null,null,null,"HM",-2.2799999999999998,-0.09,0.97]
[null,null,null,null,null,null,null,null,null,null,null,null,null,"SM",-1.82,0.47,0.16]
[null,null,null,null,null,null,null,null,null,null,null,null,null,"HD",-5.58,-5.89,-4.4000000000000004]
[null,null,null,null,null,null,null,null,null,null,null,null,null,"TTMAG",-2.15,0.02,0.55000000000000004]
[]
[]
[]
[]
[]
[]
[]
[]
[]
[]
[]
[]
[]
[]
[]
[]
[]
[]
[]
[]
[]
[]
[]
[]
[]
[]
[]
[]
[]
[]
[]
[]
[]
[]
[]
[]
[]
[]
[]
[]
[]
[]
[]
[null,"*Plus Grandes Marques : les références des marques majeures par catégories de produits, définies en GMS"]

{"sheet":"HistoriqCircuits","index":3,"n_rows":121,"n_cols":21,"rows_kept":121,"cut":false,"hidden":false,"merged":[]}
["Observatoire des prix et des marges",null,null,null,null,null,null,null,null,null,null,null,null,null,null,"Evolution de l'INFLATION ANNUELLE par TYPES de CIRCUITS"]
[null,null,null,null,null,null,null,null,null,null,null,null,null,null,null,"pour les Produits PGC+PFLS en Exhaustif"]
["Produits de grande consommation – Grande distribution"]
[null,null,null,null,null,null,null,null,null,null,null,null,null,null,null,"TOTAL GENERAL                            ",null,"Hypers","Supers","Hard-Discount","GMS"]
[null,null,null,null,null,null,null,null,null,null,null,null,null,null,null,null,"Janvier 2005",-1.2E-2,-6.7999999999999996E-3,-1.6299999999999999E-2,-1.01E-2]
[null,null,null,null,null,null,null,null,null,null,null,null,null,null,null,null,"Février 2005",-1.29E-2,-0.01,-1.34E-2,-1.17E-2]
[null,null,null,null,null,null,null,null,null,null,null,null,null,null,null,null,"Mars 2005",-1.4E-2,-1.2500000000000001E-2,-2.12E-2,-1.3299999999999999E-2]
[null,null,null,null,null,null,null,null,null,null,null,null,null,null,null,null,"Avril 2005",-1.46E-2,-1.2E-2,-1.6E-2,-1.34E-2]
[null,null,null,null,null,null,null,null,null,null,null,null,null,null,null,null,"Mai 2005",-1.5800000000000002E-2,-1.34E-2,-1.5800000000000002E-2,-1.47E-2]
[null,null,null,null,null,null,null,null,null,null,null,null,null,null,null,null,"Juin 2005",-1.6500000000000001E-2,-1.3599999999999999E-2,-1.5299999999999999E-2,-1.52E-2]
[null,null,null,null,null,null,null,null,null,null,null,null,null,null,null,null,"Juillet 2005*",-1.21E-2,-1.1766666666666667E-2,-1.5266666666666666E-2,-1.1933333333333332E-2]
[null,null,null,null,null,null,null,null,null,null,null,null,null,null,null,null,"Août 2005*",-7.7000000000000011E-3,-9.9333333333333339E-3,-1.5233333333333333E-2,-8.666666666666668E-3]
[null,null,null,null,null,null,null,null,null,null,null,null,null,null,null,null,"Sept. 2005",-3.3E-3,-8.0999999999999996E-3,-1.52E-2,-5.4000000000000003E-3]
[null,null,null,null,null,null,null,null,null,null,null,null,null,null,null,null,"Oct. 2005",-1E-3,-2.0999999999999999E-3,-1.41E-2,-1.5E-3]
[null,null,null,null,null,null,null,null,null,null,null,null,null,null,null,null,"Nov. 2005",-4.0000000000000002E-4,-4.1999999999999997E-3,-1.12E-2,-2.0999999999999999E-3]
[null,null,null,null,null,null,null,null,null,null,null,null,null,null,null,null,"Déc.2005*",2.0999999999999999E-3,-2.6999999999999997E-3,-9.2999999999999992E-3,-4.9999999999999914E-5]
[null,null,null,null,null,null,null,null,null,null,null,null,null,null,null,null,"Janvier 2006",4.5999999999999999E-3,-1.1999999999999999E-3,-7.4000000000000003E-3,2E-3]
[null,null,null,null,null,null,null,null,null,null,null,null,null,null,null,null,"Février 2006",4.7999999999999996E-3,-6.9999999999999999E-4,-4.0000000000000001E-3,2.3999999999999998E-3]
[null,null,null,null,null,null,null,null,null,null,null,null,null,null,null,null,"Mars 2006",6.1000000000000004E-3,1.8E-3,-5.0000000000000001E-4,4.1000000000000003E-3]
[null,null,null,null,null,null,null,null,null,null,null,null,null,null,null,null,"Avril 2006",5.4000000000000003E-3,2.2000000000000001E-3,-1.6000000000000001E-3,3.8999999999999998E-3]
[null,null,null,null,null,null,null,null,null,null,null,null,null,null,null,null,"Mai 2006",5.4000000000000003E-3,2.3999999999999998E-3,-3.2000000000000002E-3,4.1000000000000003E-3]
[null,null,null,null,null,null,null,null,null,null,null,null,null,null,null,null,"Juin 2006",3.2000000000000002E-3,5.0000000000000001E-4,-6.7999999999999996E-3,2E-3]
[null,null,null,null,null,null,null,null,null,null,null,null,null,null,null,null,"Juillet 2006",2.5500000000000002E-3,5.3249999999999999E-3,-3.8999999999999998E-3,3.375E-3]
[null,null,null,null,null,null,null,null,null,null,null,null,null,null,null,null,"Août 2006",8.0000000000000004E-4,9.1999999999999998E-3,-2.8E-3,3.7000000000000002E-3]
[null,null,null,null,null,null,null,null,null,null,null,null,null,null,null,null,"Sept. 2006",0,2.2000000000000001E-3,-3.0999999999999999E-3,8.9999999999999998E-4]
[null,null,null,null,null,null,null,null,null,null,null,null,null,null,null,null,"Oct. 2006",-6.9999999999999999E-4,4.8000000000000001E-4,5.0000000000000001E-4,1.4999999999999999E-4]
[null,null,null,null,null,null,null,null,null,null,null,null,null,null,null,null,"Nov.2006",4.0000000000000002E-4,1.1999999999999999E-3,5.1999999999999995E-4,6.9999999999999999E-4]
[null,null,null,null,null,null,null,null,null,null,null,null,null,null,null,null,"Déc.2006*",-1.6999999999999999E-3,1.4499999999999999E-3,1.6600000000000002E-3,-4.5000000000000004E-4]
[null,null,null,null,null,null,null,null,null,null,null,null,null,null,null,null,"Jan.2007",-3.8E-3,1.7000000000000001E-3,2.8000000000000004E-3,-1.6000000000000001E-3]
[null,null,null,null,null,null,null,null,null,null,null,null,null,null,null,null,"Fév. 2007",-7.7000000000000002E-3,1.1999999999999999E-3,4.3E-3,-4.4000000000000003E-3]
[null,null,null,null,null,null,null,null,null,null,null,null,null,null,null,null,"2007-03-01",-6.1999999999999998E-3,2.5999999999999999E-3,5.0000000000000001E-3,-1E-3]
[null,null,null,null,null,null,null,null,null,null,null,null,null,null,null,null,"2007-04-01",-8.8999999999999999E-3,-3.5999999999999999E-3,-1.5E-3,-7.4000000000000003E-3]
[null,null,null,null,null,null,null,null,null,null,null,null,null,null,null,null,"2007-05-01",-1.0700000000000001E-2,1.5E-3,-1.2999999999999999E-3,-7.4000000000000003E-3]
[null,null,null,null,null,null,null,null,null,null,null,null,null,null,null,null,"2007-06-01",-7.6E-3,2.2000000000000001E-3,4.7999999999999996E-3,-4.8999999999999998E-3]
[null,null,null,null,null,null,null,null,null,null,null,null,null,null,null,null,"2007-07-01",-7.3000000000000001E-3,4.1999999999999997E-3,6.7999999999999996E-3,-3.7000000000000002E-3]
[null,null,null,null,null,null,null,null,null,null,null,null,null,null,null,null,"2007-08-01",-5.3E-3,7.4999999999999997E-3,1.29E-2,-7.000000000000001E-4]
[null,null,null,null,null,null,null,null,null,null,null,null,null,null,null,null,"2007-09-01",-3.2000000000000002E-3,4.1999999999999997E-3,1.24E-2,-8.9999999999999998E-4]
[null,null,null,null,null,null,null,null,null,null,null,null,null,null,null,null,"2007-10-01",-1E-3,4.4000000000000003E-3,1.3000000000000001E-2,7.000000000000001E-4]
[null,null,null,null,null,null,null,null,null,null,null,null,null,null,null,null,"2007-11-01",3.3E-3,6.7000000000000002E-3,3.4999999999999996E-3,4.3E-3]
[null,null,null,null,null,null,null,null,null,null,null,null,null,null,null,null,"2007-12-01",1.3100000000000001E-2,1.6399999999999998E-2,2.0499999999999997E-2,1.4199999999999999E-2]
[null,null,null,null,null,null,null,null,null,null,null,null,null,null,null,null,"2008-01-01",2.41E-2,2.3300000000000001E-2,3.7599999999999995E-2,2.3900000000000001E-2]
[null,null,null,null,null,null,null,null,null,null,null,null,null,null,null,null,"2008-02-01",3.32E-2,3.2400000000000005E-2,4.0747628825657502E-2,3.3000000000000002E-2]
[null,null,null,null,null,null,null,null,null,null,null,null,null,null,null,null,"2008-03-01",3.44E-2,3.8800000000000001E-2,3.8199999999999998E-2,3.5499999999999997E-2]
[null,null,null,null,null,null,null,null,null,null,null,null,null,null,null,null,"2008-04-01",3.5299999999999998E-2,4.1299999999999996E-2,3.7699999999999997E-2,3.6699999999999997E-2]
[null,null,null,null,null,null,null,null,null,null,null,null,null,null,null,null,"2008-05-01",3.9E-2,3.9199999999999999E-2,3.7900000000000003E-2,3.9100000000000003E-2]
[null,null,null,null,null,null,null,null,null,null,null,null,null,null,null,null,"2008-06-01",3.85E-2,3.8800000000000001E-2,3.7999999999999999E-2,3.8599999999999995E-2]
[null,null,null,null,null,null,null,null,null,null,null,null,null,null,null,null,"2008-07-01",4.0099999999999997E-2,4.1399999999999999E-2,4.9599999999999998E-2,4.0399999999999998E-2]
[null,null,null,null,null,null,null,null,null,null,null,null,null,null,null,null,"2008-08-01",3.9300000000000002E-2,4.3400000000000001E-2,4.3099999999999999E-2,4.0300000000000002E-2]
[null,null,null,null,null,null,null,null,null,null,null,null,null,null,null,null,"2008-09-01",3.9399999999999998E-2,4.6300000000000001E-2,3.4799999999999998E-2,4.1200000000000001E-2]
[null,null,null,null,null,null,null,null,null,null,null,null,null,null,null,null,"2008-10-01",3.8599999999999995E-2,4.5700000000000005E-2,4.0500000000000001E-2,4.0399999999999998E-2]
[null,null,null,null,null,null,null,null,null,null,null,null,null,null,null,null,"2008-11-01",3.7699999999999997E-2,4.5999999999999999E-2,3.39E-2,3.9800000000000002E-2]
[null,null,null,null,null,null,null,null,null,null,null,null,null,null,null,null,"2008-12-01",2.8199999999999999E-2,3.8599999999999995E-2,2.2099999999999998E-2,3.0600000000000002E-2]
[null,null,null,null,null,null,null,null,null,null,null,null,null,null,null,null,"2009-01-01",1.8000000000000002E-2,2.69E-2,1.7100000000000001E-2,2.0099999999999996E-2]
[null,null,null,null,null,null,null,null,null,null,null,null,null,null,null,null,"2009-02-01",1.3999999999999999E-2,1.95E-2,1.2800000000000001E-2,1.54E-2]
[null,null,null,null,null,null,null,null,null,null,null,null,null,null,null,null,"2009-03-01",1.24E-2,1.4499999999999999E-2,8.3999999999999995E-3,1.29E-2]
[null,null,null,null,null,null,null,null,null,null,null,null,null,null,null,null,"2009-04-01",1.01E-2,1.1000000000000001E-2,1.5100000000000001E-2,1.04E-2]
[null,null,null,null,null,null,null,null,null,null,null,null,null,null,null,null,"2009-05-01",8.8999999999999999E-3,9.7999999999999997E-3,1.4200000000000001E-2,9.1000000000000004E-3]
[null,null,null,null,null,null,null,null,null,null,null,null,null,null,null,null,"2009-06-01",7.9000000000000008E-3,8.6999999999999994E-3,7.6E-3,8.1000000000000013E-3]
[null,null,null,null,null,null,null,null,null,null,null,null,null,null,null,null,"2009-07-01",4.7999999999999996E-3,8.6999999999999994E-3,7.9000000000000008E-3,5.7000000000000002E-3]
[null,null,null,null,null,null,null,null,null,null,null,null,null,null,null,null,"2009-08-01",5.6999999999999993E-3,3.9000000000000003E-3,6.0999999999999995E-3,5.6999999999999993E-3]
[null,null,null,null,null,null,null,null,null,null,null,null,null,null,null,null,"2009-09-01",7.4000000000000003E-3,3.8E-3,3.0999999999999999E-3,6.5000000000000006E-3]
[null,null,null,null,null,null,null,null,null,null,null,null,null,null,null,null,"2009-10-01",5.1000000000000004E-3,2.0000000000000001E-4,3.8E-3,3.9000000000000003E-3]
[null,null,null,null,null,null,null,null,null,null,null,null,null,null,null,null,"2009-11-01",3.9000000000000003E-3,-2.7000000000000001E-3,-2.9999999999999997E-4,2.2000000000000001E-3]
[null,null,null,null,null,null,null,null,null,null,null,null,null,null,null,null,"2009-12-01",2.5000000000000001E-3,-5.6999999999999993E-3,1.4000000000000002E-3,5.9999999999999995E-4]
[null,null,null,null,null,null,null,null,null,null,null,null,null,null,null,null,"2010-01-01",2.5000000000000001E-3,-3.0999999999999999E-3,-8.1000000000000013E-3,1.1000000000000001E-3]
[null,null,null,null,null,null,null,null,null,null,null,null,null,null,null,null,"2010-02-01",2.8999999999999998E-3,-1.8E-3,-1.3299999999999999E-2,1.6999999999999999E-3]
[null,null,null,null,null,null,null,null,null,null,null,null,null,null,null,null,"2010-03-01",3.4999999999999996E-3,1.1999999999999999E-3,-1.54E-2,2.8999999999999998E-3]
[null,null,null,null,null,null,null,null,null,null,null,null,null,null,null,null,"2010-04-01",3.3E-3,3.3E-3,-1.6E-2,1.8E-3]
[null,null,null,null,null,null,null,null,null,null,null,null,null,null,null,null,"2010-05-01",2.5999999999999999E-3,4.8999999999999998E-3,-1.5300000000000001E-2,3.0999999999999999E-3]
[null,null,null,null,null,null,null,null,null,null,null,null,null,null,null,null,"2010-06-01",-1.4000000000000002E-3,2.5000000000000001E-3,-1.5700000000000002E-2,-4.0000000000000002E-4]
[null,null,null,null,null,null,null,null,null,null,null,null,null,null,null,null,"2010-07-01",-3.0999999999999999E-3,-3.0000000000000001E-3,-1.9400000000000001E-2,-3.0999999999999999E-3]
[null,null,null,null,null,null,null,null,null,null,null,null,null,null,null,null,"2010-08-01",-6.5000000000000006E-3,-5.0000000000000001E-3,-1.9400000000000001E-2,-6.1999999999999998E-3]
[null,null,null,null,null,null,null,null,null,null,null,null,null,null,null,null,"2010-09-01",-8.6999999999999994E-3,-7.9000000000000008E-3,-2.0499999999999997E-2,-8.5000000000000006E-3]
[null,null,null,null,null,null,null,null,null,null,null,null,null,null,null,null,"2010-10-01",-1.0500000000000001E-2,-8.6999999999999994E-3,-0.02,-1.01E-2]
[null,null,null,null,null,null,null,null,null,null,null,null,null,null,null,null,"2010-11-01",-9.8999999999999991E-3,-8.6E-3,-1.1599999999999999E-2,-9.5999999999999992E-3]
[null,null,null,null,null,null,null,null,null,null,null,null,null,null,null,null,"2010-12-01",-9.7000000000000003E-3,-7.3000000000000001E-3,-1.4000000000000002E-3,-9.1000000000000004E-3]
[null,null,null,null,null,null,null,null,null,null,null,null,null,null,null,null,"2011-01-01",-9.300000000000001E-3,-9.7999999999999997E-3,1.15E-2,-9.3999999999999986E-3]
[null,null,null,null,null,null,null,null,null,null,null,null,null,null,null,null,"2011-02-01",-1.0800000000000001E-2,-8.8000000000000005E-3,1.7000000000000001E-2,-1.03E-2]
[null,null,null,null,null,null,null,null,null,null,null,null,null,null,null,null,"2011-03-01",-6.0999999999999995E-3,-2.8000000000000004E-3,1.6200000000000003E-2,-5.3E-3]
[null,null,null,null,null,null,null,null,null,null,null,null,null,null,null,null,"2011-04-01",-1E-4,2E-3,2.0299999999999999E-2,4.0000000000000002E-4]
[null,null,null,null,null,null,null,null,null,null,null,null,null,null,null,null,"2011-05-01",5.6000000000000008E-3,7.6E-3,3.2899999999999999E-2,6.0999999999999995E-3]
[null,null,null,null,null,null,null,null,null,null,null,null,null,null,null,null,"2011-06-01",1.37E-2,1.66E-2,3.9100000000000003E-2,1.4499999999999999E-2]
[null,null,null,null,null,null,null,null,null,null,null,null,null,null,null,null,"2011-07-01",1.6799999999999999E-2,2.3399999999999997E-2,4.2175000000000004E-2,1.84E-2]
[null,null,null,null,null,null,null,null,null,null,null,null,null,null,null,null,"2011-08-01",1.8200000000000001E-2,2.5000000000000001E-2,4.0831249999999999E-2,1.9799999999999998E-2]
[null,null,null,null,null,null,null,null,null,null,null,null,null,null,null,null,"2011-09-01",1.9299999999999998E-2,2.76E-2,6.0199999999999997E-2,2.1299999999999999E-2]
[null,null,null,null,null,null,null,null,null,null,null,null,null,null,null,null,"2011-10-01",2.1700000000000001E-2,2.8399999999999998E-2,6.2100000000000002E-2,2.3399999999999997E-2]
[null,null,null,null,null,null,null,null,null,null,null,null,null,null,null,null,"2011-11-01",2.3799999999999998E-2,3.1300000000000001E-2,6.3899999999999998E-2,2.5699999999999997E-2]
[null,null,null,null,null,null,null,null,null,null,null,null,null,null,null,null,"2011-12-01",2.4500000000000001E-2,3.2500000000000001E-2,6.7599999999999993E-2,2.6499999999999999E-2]
[null,null,null,null,null,null,null,null,null,null,null,null,null,null,null,null,"2012-01-01",2.53E-2,3.32E-2,6.3099999999999989E-2,2.7000000000000003E-2]
[null,null,null,null,null,null,null,null,null,null,null,null,null,null,null,null,"2012-02-01",2.58E-2,3.27E-2,5.7099999999999998E-2,2.7400000000000001E-2]
[null,null,null,null,null,null,null,null,null,null,null,null,null,null,null,null,"2012-03-01",2.18E-2,2.9399999999999999E-2,5.6799999999999996E-2,2.3599999999999999E-2]
[null,null,null,null,null,null,null,null,null,null,null,null,null,null,null,null,"2012-04-01",1.5900000000000001E-2,2.35E-2,5.5999999999999994E-2,1.77E-2]
[null,null,null,null,null,null,null,null,null,null,null,null,null,null,null,null,"2012-05-01",1.3300000000000001E-2,2.1499999999999998E-2,5.1900000000000002E-2,1.5300000000000001E-2]
[null,null,null,null,null,null,null,null,null,null,null,null,null,null,null,null,"2012-06-01",9.7999999999999997E-3,1.5300000000000001E-2,3.7900000000000003E-2,1.11E-2]
[null,null,null,null,null,null,null,null,null,null,null,null,null,null,null,null,"2012-07-01",6.3E-3,1.1599999999999999E-2,3.7200000000000004E-2,8.3999999999999995E-3]
[null,null,null,null,null,null,null,null,null,null,null,null,null,null,null,null,"2012-08-01",7.0999999999999995E-3,1.03E-2,2.9500000000000002E-2,8.3999999999999995E-3]
[null,null,null,null,null,null,null,null,null,null,null,null,null,null,null,null,"2012-09-01",4.6999999999999993E-3,6.3E-3,2.7900000000000001E-2,5.4000000000000003E-3]
[null,null,null,null,null,null,null,null,null,null,null,null,null,null,null,null,"2012-10-01",3.4999999999999996E-3,6.5000000000000006E-3,2.63E-2,4.6999999999999993E-3]
[null,null,null,null,null,null,null,null,null,null,null,null,null,null,null,null,"2012-11-01",1.1000000000000001E-3,4.1999999999999997E-3,0.02,2.3E-3]
[null,null,null,null,null,null,null,null,null,null,null,null,null,null,null,null,"2012-12-01",-2.0000000000000001E-4,3.4000000000000002E-3,1.49E-2,1.1000000000000001E-3]
[null,null,null,null,null,null,null,null,null,null,null,null,null,null,null,null,"2013-01-01",-5.9999999999999995E-4,3.4000000000000002E-3,1.9099999999999999E-2,1E-3]
[null,null,null,null,null,null,null,null,null,null,null,null,null,null,null,null,"2013-02-01",-2.5000000000000001E-3,1.1999999999999999E-3,1.5100000000000001E-2,-1.1000000000000001E-3]
[null,null,null,null,null,null,null,null,null,null,null,null,null,null,null,null,"2013-03-01",-2.8999999999999998E-3,1.9E-3,1.7500000000000002E-2,-1.1000000000000001E-3]
[null,null,null,null,null,null,null,null,null,null,null,null,null,null,null,null,"2013-04-01",-6.6E-3,0,1.9699999999999999E-2,-4.1999999999999997E-3]
[null,null,null,null,null,null,null,null,null,null,null,null,null,null,null,null,"2013-05-01",-7.9000000000000008E-3,-7.000000000000001E-4,2.3300000000000001E-2,-5.3E-3]
[null,null,null,null,null,null,null,null,null,null,null,null,null,null,null,null,"2013-06-01",-9.1999999999999998E-3,4.0000000000000002E-4,2.2700000000000001E-2,-5.6999999999999993E-3]
[null,null,null,null,null,null,null,null,null,null,null,null,null,null,null,null,"2013-07-01",-1.0500000000000001E-2,-1.7000000000000001E-3,2.3599999999999999E-2,-7.1999999999999998E-3]
[null,null,null,null,null,null,null,null,null,null,null,null,null,null,null,null,"2013-08-01",-1.1299999999999999E-2,-1.8E-3,2.5899999999999999E-2,-7.7000000000000002E-3]
[null,null,null,null,null,null,null,null,null,null,null,null,null,null,null,null,"2013-09-01",-1.21E-2,-2.8000000000000004E-3,2.3399999999999997E-2,-8.8000000000000005E-3]
[null,null,null,null,null,null,null,null,null,null,null,null,null,null,null,null,"2013-10-01",-1.3600000000000001E-2,-5.0000000000000001E-3,2.5899999999999999E-2,-1.04E-2]
[null,null,null,null,null,null,null,null,null,null,null,null,null,null,null,null,"2013-11-01",-1.3500000000000002E-2,-6.0999999999999995E-3,2.1899999999999999E-2,-1.0800000000000001E-2]
[null,null,null,null,null,null,null,null,null,null,null,null,null,null,null,null,"2013-12-01",-1.37E-2,-6.6E-3,7.1999999999999998E-3,-1.1299999999999999E-2]
[null,null,null,null,null,null,null,null,null,null,null,null,null,null,null,null,"2014-01-01",-1.37E-2,-8.3000000000000001E-3,-3.0000000000000001E-3,-1.18E-2]
[null,null,null,null,null,null,null,null,null,null,null,null,null,null,null,null,"2014-02-01",-1.43E-2,-9.3999999999999986E-3,-8.6999999999999994E-3,-1.2800000000000001E-2]
[null,null,null,null,null,null,null,null,null,null,null,null,null,null,null,null,"2014-03-01",-1.47E-2,-9.5999999999999992E-3,-2.2000000000000002E-2,-1.3100000000000001E-2]
[null,null,null,null,null,null,null,null,null,null,null,null,null,null,null,null,"2014-04-01",-1.4499999999999999E-2,-9.5999999999999992E-3,-3.5099999999999999E-2,-1.3100000000000001E-2]
[null,null,null,null,null,null,null,null,null,null,null,null,null,null,null,null,"2014-05-01",-2.0400000000000001E-2,-1.6E-2,-4.1500000000000002E-2,-1.9099999999999999E-2]
[null,null,null,null,null,null,null,null,null,null,null,null,null,null,null,null,"2014-06-01",-2.0299999999999999E-2,-1.6399999999999998E-2,-4.6799999999999994E-2,-1.9099999999999999E-2]
[null,null,null,null,null,null,null,null,null,null,null,null,null,null,null,null,"2014-07-01",-2.2599999999999999E-2,-1.72E-2,-5.3800000000000001E-2,-2.1000000000000001E-2]
[null,null,null,null,null,null,null,null,null,null,null,null,null,null,null,null,"2014-08-01",-2.2799999999999997E-2,-1.8200000000000001E-2,-5.5800000000000002E-2,-2.1499999999999998E-2]
[null,null,null,null,null,null,null,null,null,null,null,null,null,null,null,null,"*Chiffres estimés par interpolation linéaire"]

{"sheet":"Familles Plus","index":4,"n_rows":100,"n_cols":28,"rows_kept":100,"cut":false,"hidden":false,"merged":[[11,1,11,3]]}
["Observatoire des prix et des marges",null,null,null,null,null,null,null,null,null,null,null,null,null,null,null,null,null,null,null,null,null,"grprd","Fam/ray","Exhaustif","MDD","PPX","mfab"]
[null,null,null,null,null,null,null,null,null,null,null,null,null,null,null,null,null,null,null,null,null,null,"FA00018","Fruits secs, pruneaux",3.22,4.16,9.09,2.31]
["Produits de grande consommation – Grande distribution",null,null,null,null,null,null,null,null,null,null,null,null,null,null,null,null,null,"EXHAUSTIF","MDD","PPX","MFAB","FA00098","Traitements, engrais plant",1.7,3.47,10.61,0.97]
[null,null,null,null,null,null,null,null,null,null,null,null,null,null,null,null,null,null,null,null,null,null,"FA00002","Paté,rillet,sciss,foie gras",0.99,3.88,0.44,-0.3]
[null,null,null,null,null,null,null,null,null,null,null,null,null,null,null,null,null,"Fruits secs, pruneaux",3.22,4.16,9.09,2.31,"FA00043","Cidre, cider",0.99,3.95,-7.0000000000000007E-2,-0.26]
[null,null,null,null,null,null,null,null,null,null,null,null,null,null,null,null,null,"Traitements, engrais plant",1.7,3.47,10.61,0.97,"FA00046","Digestif,liqueur,eau de vie",0.92,2.14,-1.02,0.5]
[null,null,null,null,null,null,null,null,null,null,null,null,null,null,null,null,null,"Paté,rillet,sciss,foie gras",0.99,3.88,0.44,-0.3,"FA00048","Apéritifs alcoolisés",0.92,2.25,1.1399999999999999,0.49]
[null,null,null,null,null,null,null,null,null,null,null,null,null,null,null,null,null,"Cidre, cider",0.99,3.95,-7.0000000000000007E-2,-0.26,"FA00044","Vin (Table et Pays)",0.79,3.18,1.46,-0.52]
[null,null,null,null,null,null,null,null,null,null,null,null,null,null,null,null,null,"Digestif,liqueur,eau de vie",0.92,2.14,-1.02,0.5,"FA00080","Plats cuisinés tt prêt surg",0.61,2.0299999999999998,1.59,-1.96]
[null,null,null,null,null,null,null,null,null,null,null,null,null,null,null,null,null,"Apéritifs alcoolisés",0.92,2.25,1.1399999999999999,0.49,"FA00045","Champagne, mousseux",0.56000000000000005,2.4500000000000002,1.69,-0.18]
[null,null,null,null,null,null,null,null,null,null,null,null,null,null,null,null,null,"Vin (Table et Pays)",0.79,3.18,1.46,-0.52,"FA00079","Entrée,pizza,fast food surg",0.12,1.93,-0.49,-1.78]
[null,null,null,null,null,"EXHAUSTIF",null,"MARQUES FABRICANTS",null,"MDD",null,"PPX",null,null,null,null,null,"Plats cuisinés tt prêt surg",0.61,2.0299999999999998,1.59,-1.96,"FA00039","Sirop,concent,poudre boiss",0.06,5.16,1.23,-2.91]
[null,{"$f":"+R5","v":"Fruits secs, pruneaux"},null,null,null,{"$f":"+S5","v":3.22},null,2.31,null,{"$f":"+T5","v":4.16},null,{"$f":"+U5","v":9.09},null,null,null,null,null,"Champagne, mousseux",0.56000000000000005,2.4500000000000002,1.69,-0.18,"FA00081","FRUITS MER, POISSON NAT, PANES, GRENOUILLE ESCARGOT",0.06,1.4,2.02,-2.15]
[null,"Traitements, engrais plant",null,null,null,1.7,null,0.97,null,3.47,null,10.61,null,null,null,null,null,"Entrée,pizza,fast food surg",0.12,1.93,-0.49,-1.78,"FA00047","Whisky, bourbon",-0.04,1.77,0.4,-0.23]
[null,"Paté,rillet,sciss,foie gras",null,null,null,0.99,null,-0.3,null,3.88,null,0.44,null,null,null,null,null,null,null,null,null,null,"FA00085","Saurisserie",-0.1,0.94,-0.44,-0.94]
[null,"Cidre, cider",null,null,null,0.99,null,-0.26,null,3.95,null,-7.0000000000000007E-2,null,null,null,null,null,null,null,null,null,null,"FA00005","Légumes secs et deshydratés",-0.19,-1.34,9.27,0.11]
[null,"Digestif,liqueur,eau de vie",null,null,null,0.92,null,0.5,null,2.14,null,-1.02,null,null,null,null,null,null,null,null,null,null,"FA00078","Fromages",-0.25,0.99,1.85,-0.98]
[null,"Apéritifs alcoolisés",null,null,null,0.92,null,0.49,null,2.25,null,1.1399999999999999,null,null,null,null,null,null,null,null,null,null,"FA00083","Viande,volaill,charcut surg",-0.27,-0.02,0.43,-0.64]
[null,"Vin (Table et Pays)",null,null,null,0.79,null,-0.52,null,3.18,null,1.46,null,null,null,null,null,null,null,null,null,null,"FA00075","Lait",-0.49,0.18,4.08,-1]
[null,"Plats cuisinés tt prêt surg",null,null,null,0.61,null,-1.96,null,2.0299999999999998,null,1.59,null,null,null,null,null,null,null,null,null,null,"FA00049","Apéritifs sans alcool",-0.62,2.4700000000000002,-0.69,-1.24]
[null,"Champagne, mousseux",null,null,null,0.56000000000000005,null,-0.18,null,2.4500000000000002,null,1.69,null,null,null,null,null,null,null,null,null,null,"FA00090","Bas et collants",-0.62,-0.83,-0.38,-0.55000000000000004]
[null,"Entrée,pizza,fast food surg",null,null,null,0.12,null,-1.78,null,1.93,null,-0.49,null,null,null,null,null,null,null,null,null,null,"FA00053","Maquillage",-0.7,-0.7,-1.06,-0.7]
[null,null,null,null,null,null,null,null,null,null,null,null,null,null,null,null,null,null,null,null,null,null,"FA00011","Vinaigre",-0.72,-0.56999999999999995,-0.21,-0.97]
[null,"Leaders : 7 000 produits détenus par + 40 % des magasins HM & SM en France.",null,null,null,null,null,null,null,null,null,null,null,null,null,null,null,null,null,null,null,null,"FA00089","Vaisselle jetable",-0.73,-0.32,-2.99,-1.02]
[null,"Plus Grandes Marques = \"Majeurs\": les références des marques majeures par catégories de produits.",null,null,null,null,null,null,null,null,null,null,null,null,null,null,null,null,null,null,null,null,"FA00077","Oeufs",-1.01,-3.1,-0.47,0.33]
[null,null,null,null,null,null,null,null,null,null,null,null,null,null,null,null,null,null,null,null,null,null,"FA00001","Plats cuisinés",-1.03,0.25,1.54,-1.8]
[null,null,null,null,null,null,null,null,null,null,null,null,null,null,null,null,null,null,null,null,null,null,"FA00062","Papier hygiénique",-1.05,-0.13,0.48,-3.29]
[null,null,null,null,null,null,null,null,null,null,null,null,null,null,null,null,null,null,null,null,null,null,"FA00073","Charcuterie libre service",-1.0900000000000001,0.59,-0.65,-2.6]
[null,null,null,null,null,null,null,null,null,null,null,null,null,null,null,null,null,null,null,null,null,null,"FA00095","Ampoules électriques",-1.0900000000000001,-0.6,1.1200000000000001,-1.38]
[null,null,null,null,null,null,null,null,null,null,null,null,null,null,null,null,null,null,null,null,null,null,"FA00068","Désodorisants d'intérieur",-1.1000000000000001,0.53,-0.55000000000000004,-1.75]
[null,null,null,null,null,null,null,null,null,null,null,null,null,null,null,null,null,null,null,null,null,null,"FA00012","Sel, poivre, épices, herbes",-1.1399999999999999,2.7,4.53,-2.0099999999999998]
[null,null,null,null,null,null,null,null,null,null,null,null,null,null,null,null,null,null,null,null,null,null,"FA00094","Piles",-1.1399999999999999,-0.93,2.13,-1.56]
[null,null,null,null,null,null,null,null,null,null,null,null,null,null,null,null,null,null,null,null,null,null,"FA00010","Huile",-1.18,-0.35,-4.2699999999999996,-1.36]
[null,null,null,null,null,null,null,null,null,null,null,null,null,null,null,null,null,null,null,null,null,null,"FA00014","Légumes vinaig, huile, saum",-1.19,1.01,6.89,-2.48]
[null,null,null,null,null,null,null,null,null,null,null,null,null,null,null,null,null,null,null,null,null,null,"FA00069","Insecticides",-1.2,0.11,0.44,-1.53]
[null,null,null,null,null,null,null,null,null,null,null,null,null,null,null,null,null,null,null,null,null,null,"FA00082","Légumes surgelés",-1.29,-0.38,0.34,-3.33]
[null,null,null,null,null,null,null,null,null,null,null,null,null,null,null,null,null,null,null,null,null,null,"FA00033","Fruits au sirop, au jus",-1.3,-0.23,3.47,-2.85]
[null,null,null,null,null,null,null,null,null,null,null,null,null,null,null,null,null,null,null,null,null,null,"FA00092","Supports Informatiques",-1.3,1.54,-4.42,-1.89]
[null,null,null,null,null,null,null,null,null,null,null,null,null,null,null,null,null,null,null,null,null,null,"FA00029","Chicorée,chic+caf,cafe solu",-1.31,0.46,1.04,-2.02]
[null,null,null,null,null,null,null,null,null,null,null,null,null,null,null,null,null,null,null,null,null,null,"FA00097","Huile moteur",-1.41,-0.79,-0.45,-1.79]
[null,null,null,null,null,null,null,null,null,null,null,null,null,null,null,null,null,null,null,null,null,null,"FA00084","Surgelés sucrés",-1.46,1.6,1.9,-3.87]
[null,null,null,null,null,null,null,null,null,null,null,null,null,null,null,null,null,null,null,null,null,null,"FA00027","Pate A tartiner",-1.5,0.24,-0.23,-2.4900000000000002]
[null,null,null,null,null,null,null,null,null,null,null,null,null,null,null,null,null,null,null,null,null,null,"FA00096","LITIERES POUR ANIMAUX",-1.5,-1.0900000000000001,2.29,-2.91]
[null,null,null,null,null,null,null,null,null,null,null,null,null,null,null,null,null,null,null,null,null,null,"FA00087","Traiteur libre service",-1.52,-0.93,-0.73,-1.91]
[null,null,null,null,null,null,null,null,null,null,null,null,null,null,null,null,null,null,null,null,null,null,"FA00003","Conserves de poissons",-1.53,-0.5,0.75,-2.17]
[null,null,null,null,null,null,null,null,null,null,null,null,null,null,null,null,null,null,null,null,null,null,"FA00321","Protections incontinence adultes",-1.57,1.86,null,-5.1100000000000003]
[null,null,null,null,null,null,null,null,null,null,null,null,null,null,null,null,null,null,null,null,null,null,"FA00057","Parapharmacie",-1.61,0.43,-1.58,-2.0699999999999998]
[null,null,null,null,null,null,null,null,null,null,null,null,null,null,null,null,null,null,null,null,null,null,"FA00320","Changes complets, couches,culottes absorbantes bebes",-1.67,-0.86,-0.67,-2.56]
[null,null,null,null,null,null,null,null,null,null,null,null,null,null,null,null,null,null,null,null,null,null,"FA00041","Jus, nectar fruit,legume",-1.79,0.65,-0.24,-5.04]
[null,null,null,null,null,null,null,null,null,null,null,null,null,null,null,null,null,null,null,null,null,null,"FA00076","Beurre,margarine,creme frai",-1.81,-0.18,0.54,-2.68]
[null,null,null,null,null,null,null,null,null,null,null,null,null,null,null,null,null,null,null,null,null,null,"FA00071","Lessives, savons de ménage",-1.91,0.62,-5.29,-2.68]
[null,null,null,null,null,null,null,null,null,null,null,null,null,null,null,null,null,null,null,null,null,null,"FA00063","Essuie tout",-1.96,0.17,-0.84,-4.57]
[null,null,null,null,null,null,null,null,null,null,null,null,null,null,null,null,null,null,null,null,null,null,"FA00066","Eponges, tampons A récurer",-1.96,-0.1,-5.1100000000000003,-2.68]
[null,null,null,null,null,null,null,null,null,null,null,null,null,null,null,null,null,null,null,null,null,null,"FA00019","Aide patisserie, desserts",-1.97,-0.61,-0.54,-2.23]
[null,null,null,null,null,null,null,null,null,null,null,null,null,null,null,null,null,null,null,null,null,null,"FA00070","Cirage, entret,teintu cuir",-1.98,0.51,null,-2.1]
[null,null,null,null,null,null,null,null,null,null,null,null,null,null,null,null,null,null,null,null,null,null,"FA00009","Potages,bouill,aide culinai",-1.99,2.2400000000000002,0.24,-2.82]
[null,null,null,null,null,null,null,null,null,null,null,null,null,null,null,null,null,null,null,null,null,null,"FA00032","Miel, confiture, compote",-2,0.12,1.61,-3.45]
[null,null,null,null,null,null,null,null,null,null,null,null,null,null,null,null,null,null,null,null,null,null,"FA00036","Confiserie de sucre",-2.0099999999999998,0.97,0.15,-2.67]
[null,null,null,null,null,null,null,null,null,null,null,null,null,null,null,null,null,null,null,null,null,null,"FA00020","Biscuits sucrés",-2.02,0.68,3.05,-3.84]
[null,null,null,null,null,null,null,null,null,null,null,null,null,null,null,null,null,null,null,null,null,null,"FA00021","Patisserie industrielle",-2.15,0.83,3.88,-4.07]
[null,null,null,null,null,null,null,null,null,null,null,null,null,null,null,null,null,null,null,null,null,null,"FA00013","Sauces, prép condimentaires",-2.16,0.41,0.83,-3.23]
[null,null,null,null,null,null,null,null,null,null,null,null,null,null,null,null,null,null,null,null,null,null,"FA00040","Boisson rafraich ss alcool",-2.16,1.49,1.21,-3.35]
[null,null,null,null,null,null,null,null,null,null,null,null,null,null,null,null,null,null,null,null,null,null,"FA00035","Confiserie de chocolat",-2.2000000000000002,2.06,-0.69,-2.8]
[null,null,null,null,null,null,null,null,null,null,null,null,null,null,null,null,null,null,null,null,null,null,"FA00042","Bière, boisson base bière",-2.2400000000000002,0.83,-0.14000000000000001,-2.56]
[null,null,null,null,null,null,null,null,null,null,null,null,null,null,null,null,null,null,null,null,null,null,"FA00086","Pates fraIches",-2.27,-0.56999999999999995,1.17,-3.38]
[null,null,null,null,null,null,null,null,null,null,null,null,null,null,null,null,null,null,null,null,null,null,"FA00034","Chocolat en tablette",-2.29,-0.59,0.66,-3.03]
[null,null,null,null,null,null,null,null,null,null,null,null,null,null,null,null,null,null,null,null,null,null,"FA00074","Yaourt,dessert lac,froma bl",-2.2999999999999998,0.01,0.9,-3.94]
[null,null,null,null,null,null,null,null,null,null,null,null,null,null,null,null,null,null,null,null,null,null,"FA00072","Assouplissant, entret linge",-2.41,0.18,-1.23,-3.34]
[null,null,null,null,null,null,null,null,null,null,null,null,null,null,null,null,null,null,null,null,null,null,"FA00058","Hygiène fèminine",-2.4500000000000002,-1.02,-0.53,-3.17]
[null,null,null,null,null,null,null,null,null,null,null,null,null,null,null,null,null,null,null,null,null,null,"FA00004","Légumes en conserve",-2.46,-0.82,2.68,-4.47]
[null,null,null,null,null,null,null,null,null,null,null,null,null,null,null,null,null,null,null,null,null,null,"FA00067","Emballage ménag,filtre café",-2.4700000000000002,-1.41,0.66,-3.95]
[null,null,null,null,null,null,null,null,null,null,null,null,null,null,null,null,null,null,null,null,null,null,"FA00050","Rasage, aprés rasage",-2.6,-0.09,-2.5,-3.08]
[null,null,null,null,null,null,null,null,null,null,null,null,null,null,null,null,null,null,null,null,null,null,"FA00022","Produits apéritifs, chips",-2.62,-0.93,1.71,-3.88]
[null,null,null,null,null,null,null,null,null,null,null,null,null,null,null,null,null,null,null,null,null,null,"FA00060","Coton",-2.81,-1.63,-4.6500000000000004,-4.57]
[null,null,null,null,null,null,null,null,null,null,null,null,null,null,null,null,null,null,null,null,null,null,"FA00025","Poudres petits déjeuners",-2.86,-0.49,0.8,-3.57]
[null,null,null,null,null,null,null,null,null,null,null,null,null,null,null,null,null,null,null,null,null,null,"FA00054","Savon, bain, douche adu+bb",-2.88,0.64,4.74,-3.89]
[null,null,null,null,null,null,null,null,null,null,null,null,null,null,null,null,null,null,null,null,null,null,"FA00065","Nettoyants ménager, débouch",-2.94,-1.02,-0.73,-3.66]
[null,null,null,null,null,null,null,null,null,null,null,null,null,null,null,null,null,null,null,null,null,null,"FA00015","Aliments chiens et chats",-3.06,0.42,1.75,-4.45]
[null,null,null,null,null,null,null,null,null,null,null,null,null,null,null,null,null,null,null,null,null,null,"FA00030","Café torréfié",-3.11,-1.75,-0.95,-3.59]
[null,null,null,null,null,null,null,null,null,null,null,null,null,null,null,null,null,null,null,null,null,null,"FA00028","Thés et infusions",-3.16,0,-0.33,-4]
[null,null,null,null,null,null,null,null,null,null,null,null,null,null,null,null,null,null,null,null,null,null,"FA00026","Céréales",-3.19,0.04,-1.51,-4.83]
[null,null,null,null,null,null,null,null,null,null,null,null,null,null,null,null,null,null,null,null,null,null,"FA00061","Mouchoirs papier, lingettes",-3.41,-2.15,-1.82,-4.4400000000000004]
[null,null,null,null,null,null,null,null,null,null,null,null,null,null,null,null,null,null,null,null,null,null,"FA00008","Farines, farineux, semoules",-3.42,-2.63,-3.91,-3.69]
[null,null,null,null,null,null,null,null,null,null,null,null,null,null,null,null,null,null,null,null,null,null,"FA00031","Sucres et édulcorants",-3.47,-0.82,-3.1,-3.83]
[null,null,null,null,null,null,null,null,null,null,null,null,null,null,null,null,null,null,null,null,null,null,"FA00006","Riz",-3.5,-2.31,0.44,-4.42]
[null,null,null,null,null,null,null,null,null,null,null,null,null,null,null,null,null,null,null,null,null,null,"FA00017","Produits diététiques",-3.5,-1.75,1.84,-3.69]
[null,null,null,null,null,null,null,null,null,null,null,null,null,null,null,null,null,null,null,null,null,null,"FA00007","Pates alimentaires",-3.53,-2.34,-2.12,-4.0999999999999996]
[null,null,null,null,null,null,null,null,null,null,null,null,null,null,null,null,null,null,null,null,null,null,"FA00023","Panification sèche",-3.54,-0.45,-0.31,-5.25]
[null,null,null,null,null,null,null,null,null,null,null,null,null,null,null,null,null,null,null,null,null,null,"FA00064","Prod vaisselle main,machine",-3.65,-0.35,0.73,-5.48]
[null,null,null,null,null,null,null,null,null,null,null,null,null,null,null,null,null,null,null,null,null,null,"FA00052","Soins corps, visage adu+bb",-3.78,-2.75,1.1499999999999999,-3.96]
[null,null,null,null,null,null,null,null,null,null,null,null,null,null,null,null,null,null,null,null,null,null,"FA00055","Hygiène dentaire",-3.8,-0.99,0.5,-4.32]
[null,null,null,null,null,null,null,null,null,null,null,null,null,null,null,null,null,null,null,null,null,null,"FA00093","Petit électroménager",-3.85,-3.94,-1.57,-3.89]
[null,null,null,null,null,null,null,null,null,null,null,null,null,null,null,null,null,null,null,null,null,null,"FA00091","GANTS DE MENAGE JETABLES",-3.92,-1.1000000000000001,-15.43,-5.52]
[null,null,null,null,null,null,null,null,null,null,null,null,null,null,null,null,null,null,null,null,null,null,"FA00056","Produits capillaires",-3.98,-0.2,0.87,-4.54]
[null,null,null,null,null,null,null,null,null,null,null,null,null,null,null,null,null,null,null,null,null,null,"FA00051","Déodorant,parfum,edt adu+bb",-4.12,-6.3,-0.05,-3.91]
[null,null,null,null,null,null,null,null,null,null,null,null,null,null,null,null,null,null,null,null,null,null,"FA00037","Chewing gum",-4.18,5.47,0.05,-4.32]
[null,null,null,null,null,null,null,null,null,null,null,null,null,null,null,null,null,null,null,null,null,null,"FA00024","Lait poudre,concentré adult",-4.58,-1.69,-5.22,-5.1100000000000003]
[null,null,null,null,null,null,null,null,null,null,null,null,null,null,null,null,null,null,null,null,null,null,"FA00016","Aliments infantiles",-5.68,-2.2599999999999998,null,-6.01]
[null,null,null,null,null,null,null,null,null,null,null,null,null,null,null,null,null,null,null,null,null,null,"FA00088","Panification industr fraIc",-5.94,-3.58,-2.11,-7.53]
[null,null,null,null,null,null,null,null,null,null,null,null,null,null,null,null,null,null,null,null,null,null,"FA00038","Eaux",-6.38,1.1000000000000001,-0.49,-8.2799999999999994]

{"sheet":"Familles Moins","index":5,"n_rows":100,"n_cols":28,"rows_kept":100,"cut":false,"hidden":false,"merged":[[13,1,13,3]]}
["Observatoire des prix et des marges",null,null,null,null,null,null,null,null,null,null,null,null,null,null,null,null,null,null,null,null,null,"grprd","Fam/ray","Exhaustif","MDD","PPX","mfab"]
[null,null,null,null,null,null,null,null,null,null,null,null,null,null,null,null,null,null,null,null,null,null,"FA00038","Eaux",-6.38,1.1000000000000001,-0.49,-8.2799999999999994]
["Produits de grande consommation – Grande distribution",null,null,null,null,null,null,null,null,null,null,null,null,null,null,null,null,null,"EXHAUSTIF","MDD","PPX","MFAB","FA00088","Panification industr fraIc",-5.94,-3.58,-2.11,-7.53]
[null,null,null,null,null,null,null,null,null,null,null,null,null,null,null,null,null,null,null,null,null,null,"FA00016","Aliments infantiles",-5.68,-2.2599999999999998,null,-6.01]
[null,null,null,null,null,null,null,null,null,null,null,null,null,null,null,null,null,"Eaux",-6.38,1.1000000000000001,-0.49,-8.2799999999999994,"FA00024","Lait poudre,concentré adult",-4.58,-1.69,-5.22,-5.1100000000000003]
[null,null,null,null,null,null,null,null,null,null,null,null,null,null,null,null,null,"Panification industr fraiche",-5.94,-3.58,-2.11,-7.53,"FA00037","Chewing gum",-4.18,5.47,0.05,-4.32]
[null,null,null,null,null,null,null,null,null,null,null,null,null,null,null,null,null,"Aliments infantiles",-5.68,-2.2599999999999998,null,-6.01,"FA00051","Déodorant,parfum,edt adu+bb",-4.12,-6.3,-0.05,-3.91]
[null,null,null,null,null,null,null,null,null,null,null,null,null,null,null,null,null,"Lait poudre,concentré adult",-4.58,-1.69,-5.22,-5.1100000000000003,"FA00056","Produits capillaires",-3.98,-0.2,0.87,-4.54]
[null,null,null,null,null,null,null,null,null,null,null,null,null,null,null,null,null,"Chewing gum",-4.18,5.47,0.05,-4.32,"FA00091","GANTS DE MENAGE JETABLES",-3.92,-1.1000000000000001,-15.43,-5.52]
[null,null,null,null,null,null,null,null,null,null,null,null,null,null,null,null,null,"Déodorant,parfum,edt adu+bb",-4.12,-6.3,-0.05,-3.91,"FA00093","Petit électroménager",-3.85,-3.94,-1.57,-3.89]
[null,null,null,null,null,null,null,null,null,null,null,null,null,null,null,null,null,"Produits capillaires",-3.98,-0.2,0.87,-4.54,"FA00055","Hygiène dentaire",-3.8,-0.99,0.5,-4.32]
[null,null,null,null,null,null,null,null,null,null,null,null,null,null,null,null,null,"Gants de ménage jetables",-3.92,-1.1000000000000001,-15.43,-5.52,"FA00052","Soins corps, visage adu+bb",-3.78,-2.75,1.1499999999999999,-3.96]
[null,null,null,null,null,null,null,null,null,null,null,null,null,null,null,null,null,"Petit électroménager",-3.85,-3.94,-1.57,-3.89,"FA00064","Prod vaisselle main,machine",-3.65,-0.35,0.73,-5.48]
[null,null,null,null,null,"EXHAUSTIF",null,"MARQUES FABRICANTS",null,"MDD",null,"PPX",null,null,null,null,null,"Hygiène dentaire",-3.8,-0.99,0.5,-4.32,"FA00023","Panification sèche",-3.54,-0.45,-0.31,-5.25]
[null,{"$f":"+R5","v":"Eaux"},null,null,null,{"$f":"+S5","v":-6.38},null,-8.2799999999999994,null,{"$f":"+T5","v":1.1000000000000001},null,{"$f":"+U5","v":-0.49},null,null,null,null,null,null,null,null,null,null,"FA00007","Pates alimentaires",-3.53,-2.34,-2.12,-4.0999999999999996]
[null,"Panification industr fraiche",null,null,null,-5.94,null,-7.53,null,-3.58,null,-2.11,null,null,null,null,null,null,null,null,null,null,"FA00006","Riz",-3.5,-2.31,0.44,-4.42]
[null,"Aliments infantiles",null,null,null,-5.68,null,-6.01,null,-2.2599999999999998,null,0,null,null,null,null,null,null,null,null,null,null,"FA00017","Produits diététiques",-3.5,-1.75,1.84,-3.69]
[null,"Lait poudre,concentré adult",null,null,null,-4.58,null,-5.1100000000000003,null,-1.69,null,-5.22,null,null,null,null,null,null,null,null,null,null,"FA00031","Sucres et édulcorants",-3.47,-0.82,-3.1,-3.83]
[null,"Chewing gum",null,null,null,-4.18,null,-4.32,null,5.47,null,0.05,null,null,null,null,null,null,null,null,null,null,"FA00008","Farines, farineux, semoules",-3.42,-2.63,-3.91,-3.69]
[null,"Déodorant,parfum,edt adu+bb",null,null,null,-4.12,null,-3.91,null,-6.3,null,-0.05,null,null,null,null,null,null,null,null,null,null,"FA00061","Mouchoirs papier, lingettes",-3.41,-2.15,-1.82,-4.4400000000000004]
[null,"Produits capillaires",null,null,null,-3.98,null,-4.54,null,-0.2,null,0.87,null,null,null,null,null,null,null,null,null,null,"FA00026","Céréales",-3.19,0.04,-1.51,-4.83]
[null,"Gants de ménage jetables",null,null,null,-3.92,null,-5.52,null,-1.1000000000000001,null,-15.43,null,null,null,null,null,null,null,null,null,null,"FA00028","Thés et infusions",-3.16,0,-0.33,-4]
[null,"Petit électroménager",null,null,null,-3.85,null,-3.89,null,-3.94,null,-1.57,null,null,null,null,null,null,null,null,null,null,"FA00030","Café torréfié",-3.11,-1.75,-0.95,-3.59]
[null,"Hygiène dentaire",null,null,null,-3.8,null,-4.32,null,-0.99,null,0.5,null,null,null,null,null,null,null,null,null,null,"FA00015","Aliments chiens et chats",-3.06,0.42,1.75,-4.45]
[null,null,null,null,null,null,null,null,null,null,null,null,null,null,null,null,null,null,null,null,null,null,"FA00065","Nettoyants ménager, débouch",-2.94,-1.02,-0.73,-3.66]
[null,"Leaders : 7 000 produits détenus par + 40 % des magasins en France.",null,null,null,null,null,null,null,null,null,null,null,null,null,null,null,null,null,null,null,null,"FA00054","Savon, bain, douche adu+bb",-2.88,0.64,4.74,-3.89]
[null,"Plus Grandes Marques = \"Majeurs\": les références des marques majeures par catégories de produits.",null,null,null,null,null,null,null,null,null,null,null,null,null,null,null,null,null,null,null,null,"FA00025","Poudres petits déjeuners",-2.86,-0.49,0.8,-3.57]
[null,null,null,null,null,null,null,null,null,null,null,null,null,null,null,null,null,null,null,null,null,null,"FA00060","Coton",-2.81,-1.63,-4.6500000000000004,-4.57]
[null,null,null,null,null,null,null,null,null,null,null,null,null,null,null,null,null,null,null,null,null,null,"FA00022","Produits apéritifs, chips",-2.62,-0.93,1.71,-3.88]
[null,null,null,null,null,null,null,null,null,null,null,null,null,null,null,null,null,null,null,null,null,null,"FA00050","Rasage, aprés rasage",-2.6,-0.09,-2.5,-3.08]
[null,null,null,null,null,null,null,null,null,null,null,null,null,null,null,null,null,null,null,null,null,null,"FA00067","Emballage ménag,filtre café",-2.4700000000000002,-1.41,0.66,-3.95]
[null,null,null,null,null,null,null,null,null,null,null,null,null,null,null,null,null,null,null,null,null,null,"FA00004","Légumes en conserve",-2.46,-0.82,2.68,-4.47]
[null,null,null,null,null,null,null,null,null,null,null,null,null,null,null,null,null,null,null,null,null,null,"FA00058","Hygiène fèminine",-2.4500000000000002,-1.02,-0.53,-3.17]
[null,null,null,null,null,null,null,null,null,null,null,null,null,null,null,null,null,null,null,null,null,null,"FA00072","Assouplissant, entret linge",-2.41,0.18,-1.23,-3.34]
[null,null,null,null,null,null,null,null,null,null,null,null,null,null,null,null,null,null,null,null,null,null,"FA00074","Yaourt,dessert lac,froma bl",-2.2999999999999998,0.01,0.9,-3.94]
[null,null,null,null,null,null,null,null,null,null,null,null,null,null,null,null,null,null,null,null,null,null,"FA00034","Chocolat en tablette",-2.29,-0.59,0.66,-3.03]
[null,null,null,null,null,null,null,null,null,null,null,null,null,null,null,null,null,null,null,null,null,null,"FA00086","Pates fraIches",-2.27,-0.56999999999999995,1.17,-3.38]
[null,null,null,null,null,null,null,null,null,null,null,null,null,null,null,null,null,null,null,null,null,null,"FA00042","Bière, boisson base bière",-2.2400000000000002,0.83,-0.14000000000000001,-2.56]
[null,null,null,null,null,null,null,null,null,null,null,null,null,null,null,null,null,null,null,null,null,null,"FA00035","Confiserie de chocolat",-2.2000000000000002,2.06,-0.69,-2.8]
[null,null,null,null,null,null,null,null,null,null,null,null,null,null,null,null,null,null,null,null,null,null,"FA00013","Sauces, prép condimentaires",-2.16,0.41,0.83,-3.23]
[null,null,null,null,null,null,null,null,null,null,null,null,null,null,null,null,null,null,null,null,null,null,"FA00040","Boisson rafraich ss alcool",-2.16,1.49,1.21,-3.35]
[null,null,null,null,null,null,null,null,null,null,null,null,null,null,null,null,null,null,null,null,null,null,"FA00021","Patisserie industrielle",-2.15,0.83,3.88,-4.07]
[null,null,null,null,null,null,null,null,null,null,null,null,null,null,null,null,null,null,null,null,null,null,"FA00020","Biscuits sucrés",-2.02,0.68,3.05,-3.84]
[null,null,null,null,null,null,null,null,null,null,null,null,null,null,null,null,null,null,null,null,null,null,"FA00036","Confiserie de sucre",-2.0099999999999998,0.97,0.15,-2.67]
[null,null,null,null,null,null,null,null,null,null,null,null,null,null,null,null,null,null,null,null,null,null,"FA00032","Miel, confiture, compote",-2,0.12,1.61,-3.45]
[null,null,null,null,null,null,null,null,null,null,null,null,null,null,null,null,null,null,null,null,null,null,"FA00009","Potages,bouill,aide culinai",-1.99,2.2400000000000002,0.24,-2.82]
[null,null,null,null,null,null,null,null,null,null,null,null,null,null,null,null,null,null,null,null,null,null,"FA00070","Cirage, entret,teintu cuir",-1.98,0.51,null,-2.1]
[null,null,null,null,null,null,null,null,null,null,null,null,null,null,null,null,null,null,null,null,null,null,"FA00019","Aide patisserie, desserts",-1.97,-0.61,-0.54,-2.23]
[null,null,null,null,null,null,null,null,null,null,null,null,null,null,null,null,null,null,null,null,null,null,"FA00063","Essuie tout",-1.96,0.17,-0.84,-4.57]
[null,null,null,null,null,null,null,null,null,null,null,null,null,null,null,null,null,null,null,null,null,null,"FA00066","Eponges, tampons A récurer",-1.96,-0.1,-5.1100000000000003,-2.68]
[null,null,null,null,null,null,null,null,null,null,null,null,null,null,null,null,null,null,null,null,null,null,"FA00071","Lessives, savons de ménage",-1.91,0.62,-5.29,-2.68]
[null,null,null,null,null,null,null,null,null,null,null,null,null,null,null,null,null,null,null,null,null,null,"FA00076","Beurre,margarine,creme frai",-1.81,-0.18,0.54,-2.68]
[null,null,null,null,null,null,null,null,null,null,null,null,null,null,null,null,null,null,null,null,null,null,"FA00041","Jus, nectar fruit,legume",-1.79,0.65,-0.24,-5.04]
[null,null,null,null,null,null,null,null,null,null,null,null,null,null,null,null,null,null,null,null,null,null,"FA00320","Changes complets, couches,culottes absorbantes bebes",-1.67,-0.86,-0.67,-2.56]
[null,null,null,null,null,null,null,null,null,null,null,null,null,null,null,null,null,null,null,null,null,null,"FA00057","Parapharmacie",-1.61,0.43,-1.58,-2.0699999999999998]
[null,null,null,null,null,null,null,null,null,null,null,null,null,null,null,null,null,null,null,null,null,null,"FA00321","Protections incontinence adultes",-1.57,1.86,null,-5.1100000000000003]
[null,null,null,null,null,null,null,null,null,null,null,null,null,null,null,null,null,null,null,null,null,null,"FA00003","Conserves de poissons",-1.53,-0.5,0.75,-2.17]
[null,null,null,null,null,null,null,null,null,null,null,null,null,null,null,null,null,null,null,null,null,null,"FA00087","Traiteur libre service",-1.52,-0.93,-0.73,-1.91]
[null,null,null,null,null,null,null,null,null,null,null,null,null,null,null,null,null,null,null,null,null,null,"FA00027","Pate A tartiner",-1.5,0.24,-0.23,-2.4900000000000002]
[null,null,null,null,null,null,null,null,null,null,null,null,null,null,null,null,null,null,null,null,null,null,"FA00096","LITIERES POUR ANIMAUX",-1.5,-1.0900000000000001,2.29,-2.91]
[null,null,null,null,null,null,null,null,null,null,null,null,null,null,null,null,null,null,null,null,null,null,"FA00084","Surgelés sucrés",-1.46,1.6,1.9,-3.87]
[null,null,null,null,null,null,null,null,null,null,null,null,null,null,null,null,null,null,null,null,null,null,"FA00097","Huile moteur",-1.41,-0.79,-0.45,-1.79]
[null,null,null,null,null,null,null,null,null,null,null,null,null,null,null,null,null,null,null,null,null,null,"FA00029","Chicorée,chic+caf,cafe solu",-1.31,0.46,1.04,-2.02]
[null,null,null,null,null,null,null,null,null,null,null,null,null,null,null,null,null,null,null,null,null,null,"FA00033","Fruits au sirop, au jus",-1.3,-0.23,3.47,-2.85]
[null,null,null,null,null,null,null,null,null,null,null,null,null,null,null,null,null,null,null,null,null,null,"FA00092","Supports Informatiques",-1.3,1.54,-4.42,-1.89]
[null,null,null,null,null,null,null,null,null,null,null,null,null,null,null,null,null,null,null,null,null,null,"FA00082","Légumes surgelés",-1.29,-0.38,0.34,-3.33]
[null,null,null,null,null,null,null,null,null,null,null,null,null,null,null,null,null,null,null,null,null,null,"FA00069","Insecticides",-1.2,0.11,0.44,-1.53]
[null,null,null,null,null,null,null,null,null,null,null,null,null,null,null,null,null,null,null,null,null,null,"FA00014","Légumes vinaig, huile, saum",-1.19,1.01,6.89,-2.48]
[null,null,null,null,null,null,null,null,null,null,null,null,null,null,null,null,null,null,null,null,null,null,"FA00010","Huile",-1.18,-0.35,-4.2699999999999996,-1.36]
[null,null,null,null,null,null,null,null,null,null,null,null,null,null,null,null,null,null,null,null,null,null,"FA00012","Sel, poivre, épices, herbes",-1.1399999999999999,2.7,4.53,-2.0099999999999998]
[null,null,null,null,null,null,null,null,null,null,null,null,null,null,null,null,null,null,null,null,null,null,"FA00094","Piles",-1.1399999999999999,-0.93,2.13,-1.56]
[null,null,null,null,null,null,null,null,null,null,null,null,null,null,null,null,null,null,null,null,null,null,"FA00068","Désodorisants d'intérieur",-1.1000000000000001,0.53,-0.55000000000000004,-1.75]
[null,null,null,null,null,null,null,null,null,null,null,null,null,null,null,null,null,null,null,null,null,null,"FA00073","Charcuterie libre service",-1.0900000000000001,0.59,-0.65,-2.6]
[null,null,null,null,null,null,null,null,null,null,null,null,null,null,null,null,null,null,null,null,null,null,"FA00095","Ampoules électriques",-1.0900000000000001,-0.6,1.1200000000000001,-1.38]
[null,null,null,null,null,null,null,null,null,null,null,null,null,null,null,null,null,null,null,null,null,null,"FA00062","Papier hygiénique",-1.05,-0.13,0.48,-3.29]
[null,null,null,null,null,null,null,null,null,null,null,null,null,null,null,null,null,null,null,null,null,null,"FA00001","Plats cuisinés",-1.03,0.25,1.54,-1.8]
[null,null,null,null,null,null,null,null,null,null,null,null,null,null,null,null,null,null,null,null,null,null,"FA00077","Oeufs",-1.01,-3.1,-0.47,0.33]
[null,null,null,null,null,null,null,null,null,null,null,null,null,null,null,null,null,null,null,null,null,null,"FA00089","Vaisselle jetable",-0.73,-0.32,-2.99,-1.02]
[null,null,null,null,null,null,null,null,null,null,null,null,null,null,null,null,null,null,null,null,null,null,"FA00011","Vinaigre",-0.72,-0.56999999999999995,-0.21,-0.97]
[null,null,null,null,null,null,null,null,null,null,null,null,null,null,null,null,null,null,null,null,null,null,"FA00053","Maquillage",-0.7,-0.7,-1.06,-0.7]
[null,null,null,null,null,null,null,null,null,null,null,null,null,null,null,null,null,null,null,null,null,null,"FA00049","Apéritifs sans alcool",-0.62,2.4700000000000002,-0.69,-1.24]
[null,null,null,null,null,null,null,null,null,null,null,null,null,null,null,null,null,null,null,null,null,null,"FA00090","Bas et collants",-0.62,-0.83,-0.38,-0.55000000000000004]
[null,null,null,null,null,null,null,null,null,null,null,null,null,null,null,null,null,null,null,null,null,null,"FA00075","Lait",-0.49,0.18,4.08,-1]
[null,null,null,null,null,null,null,null,null,null,null,null,null,null,null,null,null,null,null,null,null,null,"FA00083","Viande,volaill,charcut surg",-0.27,-0.02,0.43,-0.64]
[null,null,null,null,null,null,null,null,null,null,null,null,null,null,null,null,null,null,null,null,null,null,"FA00078","Fromages",-0.25,0.99,1.85,-0.98]
[null,null,null,null,null,null,null,null,null,null,null,null,null,null,null,null,null,null,null,null,null,null,"FA00005","Légumes secs et deshydratés",-0.19,-1.34,9.27,0.11]
[null,null,null,null,null,null,null,null,null,null,null,null,null,null,null,null,null,null,null,null,null,null,"FA00085","Saurisserie",-0.1,0.94,-0.44,-0.94]
[null,null,null,null,null,null,null,null,null,null,null,null,null,null,null,null,null,null,null,null,null,null,"FA00047","Whisky, bourbon",-0.04,1.77,0.4,-0.23]
[null,null,null,null,null,null,null,null,null,null,null,null,null,null,null,null,null,null,null,null,null,null,"FA00039","Sirop,concent,poudre boiss",0.06,5.16,1.23,-2.91]
[null,null,null,null,null,null,null,null,null,null,null,null,null,null,null,null,null,null,null,null,null,null,"FA00081","FRUITS MER, POISSON NAT, PANES, GRENOUILLE ESCARGOT",0.06,1.4,2.02,-2.15]
[null,null,null,null,null,null,null,null,null,null,null,null,null,null,null,null,null,null,null,null,null,null,"FA00079","Entrée,pizza,fast food surg",0.12,1.93,-0.49,-1.78]
[null,null,null,null,null,null,null,null,null,null,null,null,null,null,null,null,null,null,null,null,null,null,"FA00045","Champagne, mousseux",0.56000000000000005,2.4500000000000002,1.69,-0.18]
[null,null,null,null,null,null,null,null,null,null,null,null,null,null,null,null,null,null,null,null,null,null,"FA00080","Plats cuisinés tt prêt surg",0.61,2.0299999999999998,1.59,-1.96]
[null,null,null,null,null,null,null,null,null,null,null,null,null,null,null,null,null,null,null,null,null,null,"FA00044","Vin (Table et Pays)",0.79,3.18,1.46,-0.52]
[null,null,null,null,null,null,null,null,null,null,null,null,null,null,null,null,null,null,null,null,null,null,"FA00046","Digestif,liqueur,eau de vie",0.92,2.14,-1.02,0.5]
[null,null,null,null,null,null,null,null,null,null,null,null,null,null,null,null,null,null,null,null,null,null,"FA00048","Apéritifs alcoolisés",0.92,2.25,1.1399999999999999,0.49]
[null,null,null,null,null,null,null,null,null,null,null,null,null,null,null,null,null,null,null,null,null,null,"FA00002","Paté,rillet,sciss,foie gras",0.99,3.88,0.44,-0.3]
[null,null,null,null,null,null,null,null,null,null,null,null,null,null,null,null,null,null,null,null,null,null,"FA00043","Cidre, cider",0.99,3.95,-7.0000000000000007E-2,-0.26]
[null,null,null,null,null,null,null,null,null,null,null,null,null,null,null,null,null,null,null,null,null,null,"FA00098","Traitements, engrais plant",1.7,3.47,10.61,0.97]
[null,null,null,null,null,null,null,null,null,null,null,null,null,null,null,null,null,null,null,null,null,null,"FA00018","Fruits secs, pruneaux",3.22,4.16,9.09,2.31]

{"sheet":"Familles HD","index":6,"n_rows":93,"n_cols":30,"rows_kept":93,"cut":false,"hidden":false,"merged":[[10,1,10,3],[10,10,10,12]]}
["Observatoire des prix et des marges",null,null,null,null,null,null,null,null,null,null,null,null,null,null,null,null,null,null,null,null,null,null,null,null,null,"grprd","Fam/ray","Exhaustif","MP Hard-Discount"]
[null,null,null,null,null,null,null,null,null,null,null,null,null,null,null,null,null,null,null,null,null,null,null,null,null,null,"FA00061","Mouchoirs papier, lingettes",-18.02,-18.77912713472486]
["Produits de grande consommation – Grande distribution",null,null,null,null,null,null,null,null,null,null,null,null,null,null,null,null,null,null,null,null,null,"EXHAUSTIF","Marques Propres",null,null,"FA00051","Déodorant,parfum,edt adu+bb",-15.07,-23.486865671641791]
[null,null,null,null,null,null,null,null,null,null,null,null,null,null,null,null,null,null,null,null,null,"Vin (Table et Pays)",1.08,-2.8991525423728817,null,null,"FA00060","Coton",-11.87,-13.836534954407295]
[null,null,null,null,null,null,null,null,null,null,null,null,null,null,null,null,null,null,null,null,null,"Huile moteur",-0.04,-0.04,null,null,"FA00024","Lait poudre,concentré adult",-11.15,-13.894722222222223]
[null,null,null,null,null,null,null,null,null,null,null,null,null,null,null,null,null,null,null,null,null,"Fruits au sirop, au jus",-0.09,-0.34293233082706764,null,null,"FA00017","Produits diététiques",-10.71,-13.77]
[null,null,null,null,null,null,null,null,null,null,null,null,null,null,null,null,null,null,null,null,null,"Sirop,concent,poudre boiss",-0.53,-1.5327210103329533E-2,null,null,"FA00042","Bière, boisson base bière",-10.54,-16.202495088408643]
[null,null,null,null,null,null,null,null,null,null,null,null,null,null,null,null,null,null,null,null,null,"Digestif,liqueur,eau de vie",-0.54,-3.2039506172839505,null,null,"FA00016","Aliments infantiles",-10.210000000000001,-0.93878640776699018]
[null,null,null,null,null,null,null,null,null,null,null,null,null,null,null,null,null,null,null,null,null,"Apéritifs sans alcool",-1.49,-5.5317647058823534,null,null,"FA00066","Eponges, tampons A récurer",-10.130000000000001,-7.8502047781569955]
[null,null,null,null,null,null,null,null,null,null,null,null,null,null,null,null,null,null,null,null,null,"Panification sèche",-1.6,-1.4550000000000001,null,null,"FA00052","Soins corps, visage adu+bb",-10.11,-16.483797814207648]
[null,null,null,null,null,"EXHAUSTIF",null,"Marques Propres",null,null,null,null,null,null,"EXHAUSTIF",null,"Marques Propres",null,null,null,null,"Sel, poivre, épices, herbes",-1.82,-1.7424797843665767,null,null,"FA00320","Changes complets, couches,culottes absorbantes bebes",-9.9700000000000006,-12.200675675675676]
[null,{"$f":"+V4","v":"Vin (Table et Pays)"},null,null,null,{"$f":"+W4","v":1.08},null,{"$f":"+X4","v":-2.8991525423728817},null,null,{"$f":"+V20","v":"Mouchoirs papier, lingettes"},null,null,null,{"$f":"+W20","v":-18.02},null,{"$f":"+X20","v":-18.77912713472486},null,null,null,null,"GANTS DE MENAGE JETABLES",-1.91,-2.4300000000000002,null,null,"FA00080","Plats cuisinés tt prêt surg",-9.32,-8.6649483826565721]
[null,"Huile moteur",null,null,null,-0.04,null,-0.04,null,null,"Déodorant,parfum,edt adu+bb",null,null,null,-15.07,null,-23.486865671641791,null,null,null,null,"Maquillage",-1.98,-21.59,null,null,"FA00041","Jus, nectar fruit,legume",-9.11,-9.4552177263969153]
[null,"Fruits au sirop, au jus",null,null,null,-0.09,null,-0.34293233082706764,null,null,"Coton",null,null,null,-11.87,null,-13.836534954407295,null,null,null,null,null,null,null,null,null,"FA00056","Produits capillaires",-9.11,-10.476250000000002]
[null,"Sirop,concent,poudre boiss",null,null,null,-0.53,null,-1.5327210103329533E-2,null,null,"Lait poudre,concentré adult",null,null,null,-11.15,null,-13.894722222222223,null,null,null,null,null,null,null,null,null,"FA00015","Aliments chiens et chats",-8.92,-8.4233988439306362]
[null,"Digestif,liqueur,eau de vie",null,null,null,-0.54,null,-3.2039506172839505,null,null,"Produits diététiques",null,null,null,-10.71,null,-13.77,null,null,null,null,null,null,null,null,null,"FA00088","Panification industr fraIc",-8.76,-8.5977722772277207]
[null,"Apéritifs sans alcool",null,null,null,-1.49,null,-5.5317647058823534,null,null,"Bière, boisson base bière",null,null,null,-10.54,null,-16.202495088408643,null,null,null,null,null,null,null,null,null,"FA00077","Oeufs",-8.74,-10.878055555555557]
[null,"Panification sèche",null,null,null,-1.6,null,-1.4550000000000001,null,null,"Aliments infantiles",null,null,null,-10.210000000000001,null,-0.93878640776699018,null,null,null,null,null,null,null,null,null,"FA00062","Papier hygiénique",-8.2799999999999994,-9.2762790697674404]
[null,"Sel, poivre, épices, herbes",null,null,null,-1.82,null,-1.7424797843665767,null,null,"Eponges, tampons A récurer",null,null,null,-10.130000000000001,null,-7.8502047781569955,null,null,null,null,null,"EXHAUSTIF","Marques Propres",null,null,"FA00054","Savon, bain, douche adu+bb",-8.1,-7.9448157894736839]
[null,"GANTS DE MENAGE JETABLES",null,null,null,-1.91,null,-2.4300000000000002,null,null,"Soins corps, visage adu+bb",null,null,null,-10.11,null,-16.483797814207648,null,null,null,null,"Mouchoirs papier, lingettes",-18.02,-18.77912713472486,null,null,"FA00030","Café torréfié",-8.07,-9.5076271186440664]
[null,"Maquillage",null,null,null,-1.98,null,-21.59,null,null,"Changes complets, couches,culottes absorbantes bebes",null,null,null,-9.9700000000000006,null,-12.200675675675676,null,null,null,null,"Déodorant,parfum,edt adu+bb",-15.07,-23.486865671641791,null,null,"FA00028","Thés et infusions",-7.59,-4.6879172821270316]
[null,null,null,null,null,null,null,null,null,null,null,null,null,null,null,null,null,null,null,null,null,"Coton",-11.87,-13.836534954407295,null,null,"FA00055","Hygiène dentaire",-7.53,-5.980833333333333]
[null,"Marques Propres : marques MdD \"Premium\", \"Cœur de Gamme\" et \"Premiers Prix\"",null,null,null,null,null,null,null,null,"Marques Propres : marques MdD \"Premium\", \"Cœur de Gamme\" et \"Premiers Prix\"",null,null,null,null,null,null,null,null,null,null,"Lait poudre,concentré adult",-11.15,-13.894722222222223,null,null,"FA00035","Confiserie de chocolat",-7.45,-9.2799999999999994]
[null,null,null,null,null,null,null,null,null,null,null,null,null,null,null,null,null,null,null,null,null,"Produits diététiques",-10.71,-13.77,null,null,"FA00027","Pate A tartiner",-7.15,-6.9668181818181818]
[null,null,null,null,null,null,null,null,null,null,null,null,null,null,null,null,null,null,null,null,null,"Bière, boisson base bière",-10.54,-16.202495088408643,null,null,"FA00038","Eaux",-7.07,-6.7129449838187707]
[null,null,null,null,null,null,null,null,null,null,null,null,null,null,null,null,null,null,null,null,null,"Aliments infantiles",-10.210000000000001,-0.93878640776699018,null,null,"FA00058","Hygiène fèminine",-7.03,-6.3890062111801251]
[null,null,null,null,null,null,null,null,null,null,null,null,null,null,null,null,null,null,null,null,null,"Eponges, tampons A récurer",-10.130000000000001,-7.8502047781569955,null,null,"FA00070","Cirage, entret,teintu cuir",-7.02,-7.94]
[null,null,null,null,null,null,null,null,null,null,null,null,null,null,null,null,null,null,null,null,null,"Soins corps, visage adu+bb",-10.11,-16.483797814207648,null,null,"FA00078","Fromages",-6.93,-7.4386690540137286]
[null,null,null,null,null,null,null,null,null,null,null,null,null,null,null,null,null,null,null,null,null,"Changes complets, couches,culottes absorbantes bebes",-9.9700000000000006,-12.200675675675676,null,null,"FA00079","Entrée,pizza,fast food surg",-6.92,-7.4829829172141924]
[null,null,null,null,null,null,null,null,null,null,null,null,null,null,null,null,null,null,null,null,null,null,null,null,null,null,"FA00037","Chewing gum",-6.87,-3.06]
[null,null,null,null,null,null,null,null,null,null,null,null,null,null,null,null,null,null,null,null,null,null,null,null,null,null,"FA00096","LITIERES POUR ANIMAUX",-6.86,-6.8102898550724644]
[null,null,null,null,null,null,null,null,null,null,null,null,null,null,null,null,null,null,null,null,null,null,null,null,null,null,"FA00321","Protections incontinence adultes",-6.77,{"$error":"#DIV/0!"}]
[null,null,null,null,null,null,null,null,null,null,null,null,null,null,null,null,null,null,null,null,null,null,null,null,null,null,"FA00007","Pates alimentaires",-6.58,-5.7276111744583806]
[null,null,null,null,null,null,null,null,null,null,null,null,null,null,null,null,null,null,null,null,null,null,null,null,null,null,"FA00072","Assouplissant, entret linge",-6.51,-6.8419964664310946]
[null,null,null,null,null,null,null,null,null,null,null,null,null,null,null,null,null,null,null,null,null,null,null,null,null,null,"FA00063","Essuie tout",-6.47,-6.2604736842105266]
[null,null,null,null,null,null,null,null,null,null,null,null,null,null,null,null,null,null,null,null,null,null,null,null,null,null,"FA00026","Céréales",-6.32,-6.1638356164383552]
[null,null,null,null,null,null,null,null,null,null,null,null,null,null,null,null,null,null,null,null,null,null,null,null,null,null,"FA00067","Emballage ménag,filtre café",-6.24,-5.7901550387596901]
[null,null,null,null,null,null,null,null,null,null,null,null,null,null,null,null,null,null,null,null,null,null,null,null,null,null,"FA00082","Légumes surgelés",-6.2,-6.4783134920634913]
[null,null,null,null,null,null,null,null,null,null,null,null,null,null,null,null,null,null,null,null,null,null,null,null,null,null,"FA00003","Conserves de poissons",-6.18,-6.6330805687203789]
[null,null,null,null,null,null,null,null,null,null,null,null,null,null,null,null,null,null,null,null,null,null,null,null,null,null,"FA00013","Sauces, prép condimentaires",-5.93,-5.9493626373626372]
[null,null,null,null,null,null,null,null,null,null,null,null,null,null,null,null,null,null,null,null,null,null,null,null,null,null,"FA00075","Lait",-5.9,-6.949305993690853]
[null,null,null,null,null,null,null,null,null,null,null,null,null,null,null,null,null,null,null,null,null,null,null,null,null,null,"FA00004","Légumes en conserve",-5.76,-6.70275204359673]
[null,null,null,null,null,null,null,null,null,null,null,null,null,null,null,null,null,null,null,null,null,null,null,null,null,null,"FA00074","Yaourt,dessert lac,froma bl",-5.64,-5.6800758243695997]
[null,null,null,null,null,null,null,null,null,null,null,null,null,null,null,null,null,null,null,null,null,null,null,null,null,null,"FA00050","Rasage, aprés rasage",-5.63,-4.1925000000000008]
[null,null,null,null,null,null,null,null,null,null,null,null,null,null,null,null,null,null,null,null,null,null,null,null,null,null,"FA00029","Chicorée,chic+caf,cafe solu",-5.4,-5.7061839530332685]
[null,null,null,null,null,null,null,null,null,null,null,null,null,null,null,null,null,null,null,null,null,null,null,null,null,null,"FA00065","Nettoyants ménager, débouch",-5.34,-4.6612077294685994]
[null,null,null,null,null,null,null,null,null,null,null,null,null,null,null,null,null,null,null,null,null,null,null,null,null,null,"FA00064","Prod vaisselle main,machine",-5.28,-5.0508834827144691]
[null,null,null,null,null,null,null,null,null,null,null,null,null,null,null,null,null,null,null,null,null,null,null,null,null,null,"FA00009","Potages,bouill,aide culinai",-5.22,-4.1734874504623516]
[null,null,null,null,null,null,null,null,null,null,null,null,null,null,null,null,null,null,null,null,null,null,null,null,null,null,"FA00006","Riz",-5.17,-6.1250234741784046]
[null,null,null,null,null,null,null,null,null,null,null,null,null,null,null,null,null,null,null,null,null,null,null,null,null,null,"FA00010","Huile",-5.17,-5.3168412698412704]
[null,null,null,null,null,null,null,null,null,null,null,null,null,null,null,null,null,null,null,null,null,null,null,null,null,null,"FA00022","Produits apéritifs, chips",-5.16,-5.5603390935767845]
[null,null,null,null,null,null,null,null,null,null,null,null,null,null,null,null,null,null,null,null,null,null,null,null,null,null,"FA00087","Traiteur libre service",-4.8499999999999996,-4.9690628672150403]
[null,null,null,null,null,null,null,null,null,null,null,null,null,null,null,null,null,null,null,null,null,null,null,null,null,null,"FA00083","Viande,volaill,charcut surg",-4.8099999999999996,-6.0054025423728818]
[null,null,null,null,null,null,null,null,null,null,null,null,null,null,null,null,null,null,null,null,null,null,null,null,null,null,"FA00047","Whisky, bourbon",-4.58,-1.0845064377682403]
[null,null,null,null,null,null,null,null,null,null,null,null,null,null,null,null,null,null,null,null,null,null,null,null,null,null,"FA00019","Aide patisserie, desserts",-4.53,-5.085495915985998]
[null,null,null,null,null,null,null,null,null,null,null,null,null,null,null,null,null,null,null,null,null,null,null,null,null,null,"FA00032","Miel, confiture, compote",-4.41,-4.3186851211072668]
[null,null,null,null,null,null,null,null,null,null,null,null,null,null,null,null,null,null,null,null,null,null,null,null,null,null,"FA00081","FRUITS MER, POISSON NAT, PANES, GRENOUILLE ESCARGOT",-4.4000000000000004,-5.0511966987620358]
[null,null,null,null,null,null,null,null,null,null,null,null,null,null,null,null,null,null,null,null,null,null,null,null,null,null,"FA00020","Biscuits sucrés",-4.37,-4.1371833688699358]
[null,null,null,null,null,null,null,null,null,null,null,null,null,null,null,null,null,null,null,null,null,null,null,null,null,null,"FA00068","Désodorisants d'intérieur",-4.32,-6.268123861566484]
[null,null,null,null,null,null,null,null,null,null,null,null,null,null,null,null,null,null,null,null,null,null,null,null,null,null,"FA00073","Charcuterie libre service",-4.29,-4.5984292260692463]
[null,null,null,null,null,null,null,null,null,null,null,null,null,null,null,null,null,null,null,null,null,null,null,null,null,null,"FA00036","Confiserie de sucre",-4.1500000000000004,-6.9188516746411484]
[null,null,null,null,null,null,null,null,null,null,null,null,null,null,null,null,null,null,null,null,null,null,null,null,null,null,"FA00076","Beurre,margarine,creme frai",-4.12,-4.4372250546249097]
[null,null,null,null,null,null,null,null,null,null,null,null,null,null,null,null,null,null,null,null,null,null,null,null,null,null,"FA00021","Patisserie industrielle",-4.0999999999999996,-3.9378135313531355]
[null,null,null,null,null,null,null,null,null,null,null,null,null,null,null,null,null,null,null,null,null,null,null,null,null,null,"FA00008","Farines, farineux, semoules",-4.04,-3.7168965517241381]
[null,null,null,null,null,null,null,null,null,null,null,null,null,null,null,null,null,null,null,null,null,null,null,null,null,null,"FA00040","Boisson rafraich ss alcool",-4.03,-5.4571674057649666]
[null,null,null,null,null,null,null,null,null,null,null,null,null,null,null,null,null,null,null,null,null,null,null,null,null,null,"FA00034","Chocolat en tablette",-3.84,-5.4759808259587022]
[null,null,null,null,null,null,null,null,null,null,null,null,null,null,null,null,null,null,null,null,null,null,null,null,null,null,"FA00045","Champagne, mousseux",-3.76,-1.5677868852459018]
[null,null,null,null,null,null,null,null,null,null,null,null,null,null,null,null,null,null,null,null,null,null,null,null,null,null,"FA00025","Poudres petits déjeuners",-3.71,-3.2061111111111109]
[null,null,null,null,null,null,null,null,null,null,null,null,null,null,null,null,null,null,null,null,null,null,null,null,null,null,"FA00084","Surgelés sucrés",-3.69,-3.4506133979015337]
[null,null,null,null,null,null,null,null,null,null,null,null,null,null,null,null,null,null,null,null,null,null,null,null,null,null,"FA00048","Apéritifs alcoolisés",-3.55,-4.2838461538461532]
[null,null,null,null,null,null,null,null,null,null,null,null,null,null,null,null,null,null,null,null,null,null,null,null,null,null,"FA00071","Lessives, savons de ménage",-3.35,-3.1933965014577259]
[null,null,null,null,null,null,null,null,null,null,null,null,null,null,null,null,null,null,null,null,null,null,null,null,null,null,"FA00005","Légumes secs et deshydratés",-3.18,-4.78]
[null,null,null,null,null,null,null,null,null,null,null,null,null,null,null,null,null,null,null,null,null,null,null,null,null,null,"FA00031","Sucres et édulcorants",-3.1,-3.1158482142857138]
[null,null,null,null,null,null,null,null,null,null,null,null,null,null,null,null,null,null,null,null,null,null,null,null,null,null,"FA00057","Parapharmacie",-3,-2.95]
[null,null,null,null,null,null,null,null,null,null,null,null,null,null,null,null,null,null,null,null,null,null,null,null,null,null,"FA00011","Vinaigre",-2.97,-2.5715028901734103]
[null,null,null,null,null,null,null,null,null,null,null,null,null,null,null,null,null,null,null,null,null,null,null,null,null,null,"FA00002","Paté,rillet,sciss,foie gras",-2.92,-4.6648575305291722]
[null,null,null,null,null,null,null,null,null,null,null,null,null,null,null,null,null,null,null,null,null,null,null,null,null,null,"FA00069","Insecticides",-2.89,-2.0846202531645575]
[null,null,null,null,null,null,null,null,null,null,null,null,null,null,null,null,null,null,null,null,null,null,null,null,null,null,"FA00086","Pates fraIches",-2.64,1.7665970149253734]
[null,null,null,null,null,null,null,null,null,null,null,null,null,null,null,null,null,null,null,null,null,null,null,null,null,null,"FA00018","Fruits secs, pruneaux",-2.61,-6.1315590200445431]
[null,null,null,null,null,null,null,null,null,null,null,null,null,null,null,null,null,null,null,null,null,null,null,null,null,null,"FA00043","Cidre, cider",-2.4500000000000002,8.5051908396946576]
[null,null,null,null,null,null,null,null,null,null,null,null,null,null,null,null,null,null,null,null,null,null,null,null,null,null,"FA00001","Plats cuisinés",-2.2400000000000002,-2.9154357592093443]
[null,null,null,null,null,null,null,null,null,null,null,null,null,null,null,null,null,null,null,null,null,null,null,null,null,null,"FA00014","Légumes vinaig, huile, saum",-2.02,-1.6364697609001402]
[null,null,null,null,null,null,null,null,null,null,null,null,null,null,null,null,null,null,null,null,null,null,null,null,null,null,"FA00053","Maquillage",-1.98,-21.59]
[null,null,null,null,null,null,null,null,null,null,null,null,null,null,null,null,null,null,null,null,null,null,null,null,null,null,"FA00085","Saurisserie",-1.98,-2.6611428571428575]
[null,null,null,null,null,null,null,null,null,null,null,null,null,null,null,null,null,null,null,null,null,null,null,null,null,null,"FA00091","GANTS DE MENAGE JETABLES",-1.91,-2.4300000000000002]
[null,null,null,null,null,null,null,null,null,null,null,null,null,null,null,null,null,null,null,null,null,null,null,null,null,null,"FA00012","Sel, poivre, épices, herbes",-1.82,-1.7424797843665767]
[null,null,null,null,null,null,null,null,null,null,null,null,null,null,null,null,null,null,null,null,null,null,null,null,null,null,"FA00023","Panification sèche",-1.6,-1.4550000000000001]
[null,null,null,null,null,null,null,null,null,null,null,null,null,null,null,null,null,null,null,null,null,null,null,null,null,null,"FA00049","Apéritifs sans alcool",-1.49,-5.5317647058823534]
[null,null,null,null,null,null,null,null,null,null,null,null,null,null,null,null,null,null,null,null,null,null,null,null,null,null,"FA00046","Digestif,liqueur,eau de vie",-0.54,-3.2039506172839505]
[null,null,null,null,null,null,null,null,null,null,null,null,null,null,null,null,null,null,null,null,null,null,null,null,null,null,"FA00039","Sirop,concent,poudre boiss",-0.53,-1.5327210103329533E-2]
[null,null,null,null,null,null,null,null,null,null,null,null,null,null,null,null,null,null,null,null,null,null,null,null,null,null,"FA00033","Fruits au sirop, au jus",-0.09,-0.34293233082706764]
[null,null,null,null,null,null,null,null,null,null,null,null,null,null,null,null,null,null,null,null,null,null,null,null,null,null,"FA00097","Huile moteur",-0.04,-0.04]
[null,null,null,null,null,null,null,null,null,null,null,null,null,null,null,null,null,null,null,null,null,null,null,null,null,null,"FA00044","Vin (Table et Pays)",1.08,-2.8991525423728817]

{"sheet":"Régions","index":7,"n_rows":33,"n_cols":7,"rows_kept":33,"cut":false,"hidden":false,"merged":[[24,3,24,5],[23,3,23,5],[13,3,13,5],[14,3,14,5],[15,3,15,5],[22,3,22,5],[21,3,21,5],[20,3,20,5],[11,3,11,5],[12,3,12,5],[19,3,19,5],[16,3,16,5],[17,3,17,5],[18,3,18,5],[32,3,32,5],[25,3,25,5],[26,3,26,5],[27,3,27,5],[28,3,28,5],[31,3,31,5],[29,3,29,5],[30,3,30,5]]}
["Observatoire des prix et des marges"]
[]
["Produits de grande consommation – Grande distribution"]
[]
[]
[]
[]
[]
[]
[]
[]
["A0",null,null,"Alsace",null,null,-2.09]
["A1",null,null,"Aquitaine",null,null,-1.9]
["A2",null,null,"Auvergne",null,null,-2]
["A3",null,null,"Basse-Normandie",null,null,-1.67]
["A4",null,null,"Bourgogne",null,null,-2.36]
["A5",null,null,"Bretagne",null,null,-2.09]
["A6",null,null,"Centre",null,null,-1.9]
["A7",null,null,"Champagne-Ardenne",null,null,-2.04]
["CC",null,null,"Corse",null,null,-1.48]
["A9",null,null,"Franche-Comté",null,null,-3.23]
["B0",null,null,"Haute-Normandie",null,null,-2.12]
["B1",null,null,"Île-de-France",null,null,-2.09]
["B2",null,null,"Languedoc-Roussillon",null,null,-2.72]
["B3",null,null,"Limousin",null,null,-2.23]
["B4",null,null,"Lorraine",null,null,-2.2400000000000002]
["B5",null,null,"Midi-Pyrénées",null,null,-2.35]
["B6",null,null,"Nord-Pas-de-Calais",null,null,-2.12]
["B7",null,null,"Pays de la Loire",null,null,-2.3199999999999998]
["B8",null,null,"Picardie",null,null,-1.91]
["B9",null,null,"Poitou-Charentes",null,null,-2.25]
["C0",null,null,"Provence-Alpes-Côte d'Azur",null,null,-2.42]
[null,null,null,"Rhône-Alpes",null,null,-2.1]